{"text_format":"1","workbook":"xlsx","n_sheets":20,"sheets":["Cover Page","Contents","Facility Info","Operational Summary","Operational Data","Perf. Form 1","Energy Form 1","Permit Compliance","Improvements","Public Liasion","Residue Quality ","Water","Air (periodic)","Air (CEMS)","HCl","SO2","NOx","TOC","Particulates","CO 95% 10 min"],"not_rendered":{"charts":6,"images":2,"macros":1,"external_links":0,"defined_names":20,"comments":0,"pivot_tables":0},"unopened":[],"bounds":{"document_bytes":16777216,"sheet_cells":100000,"rows_first":2000,"rows_last":500,"rows_between":2000,"halvings":0,"cell_chars":16384,"cell_head_chars":4096},"cells_cut":0,"cells_raw":0,"read":"whole","date_system":"1900"}

{"sheet":"Cover Page","index":0,"n_rows":54,"n_cols":14,"rows_kept":54,"cut":false,"hidden":false,"merged":[[13,13,18,15],[34,1,34,8],[0,3,5,6],[7,1,23,8],[28,1,28,8],[30,1,30,8],[32,1,32,8],[49,2,49,3],[49,6,49,8],[53,2,53,3],[36,1,36,8],[40,2,40,8],[42,2,42,4],[44,2,44,4],[46,2,46,3],[46,6,47,8]]}
[null,null,null,"Add company logo"]
[null,null,null,null,null,null,null,null,null,null,null,null,null,"Version 20.1 "]
[]
[]
[]
[]
[]
[null,"Add photo"]
[]
[]
[]
[]
[null,null,null,null,null,null,null,null,null,null,null,null,null,"Notes:"]
[null,null,null,null,null,null,null,null,null,null,null,null,null,"This template may require adjustments by individual operators to meet specific reporting requirements as defined in the site Permit(s)"]
[]
[]
[]
[]
[]
[]
[]
[]
[]
[]
[]
[]
[]
[]
[null,"Annual Performance Report 2021"]
[]
[null,"Permit EPR/HP3431HK"]
[]
[null,"Staffordshire Energy Recovery Facility"]
[]
[]
[]
[null,"Veolia ES Staffordshire Limited"]
[]
[null,"Year:",2021]
[]
[null,"Address:","The Dell, Enterprise Drive, Four Ashes, Wolverhampton, Staffordshire, WV10 7DF"]
[]
[null,"Tel: ","0203 567 6300"]
[]
[null,"Email: ","christine.skaramaga@veolia.com"]
[]
[null,"Prepared by:","Christine Skaramaga",null,null,"Position:","Midlands Region Environmental Engineer"]
[]
[]
[null,"Approved by:","Robert Foster",null,null,"Position:","Facility Manager"]
[]
[null,"Version:",1]
[]
[null,"Issue Date:","2022-01-26"]

{"sheet":"Contents","index":1,"n_rows":43,"n_cols":11,"rows_kept":43,"cut":false,"hidden":false,"merged":[[4,10,7,14],[8,1,8,6],[3,1,3,6],[4,1,4,6],[5,1,5,6],[6,1,6,6],[7,1,7,6],[20,1,20,6],[9,1,9,6],[10,1,10,6],[11,1,11,6],[12,1,12,6],[13,1,13,6],[14,1,14,6],[15,1,15,6],[16,1,16,6],[17,1,17,6],[18,1,18,6],[19,1,19,6],[34,1,34,6],[21,1,21,6],[22,1,22,6],[25,1,25,6],[26,1,26,6],[27,1,27,6],[28,1,28,6],[29,1,29,6],[30,1,30,6],[33,1,33,6],[42,0,45,9],[35,1,35,6],[36,1,36,6],[37,1,37,6],[38,1,38,6],[39,1,39,6],[40,1,40,6]]}
[{"$f":"+'Cover Page'!$B$29","v":"Annual Performance Report 2021"},null,null,null,{"$f":"+'Cover Page'!$B$33","v":"Staffordshire Energy Recovery Facility"}]
[]
["Contents",null,null,null,null,null,null,null,null,null,"Notes:"]
["Section","Subject",null,null,null,null,null,"Page ",null,null,"Section references and Page nos. to be inserted"]
[null,"Facility Information",null,null,null,null,null,3,null,null,"Sections and Subjects may require adjustment by individual operators to meet specific reporting requirements as defined in the sites Permit(s)"]
[null,"Operational Summary",null,null,null,null,null,4]
[null,"Operational Data",null,null,null,null,null,5]
[null,"Performance Form 1",null,null,null,null,null,6]
[null,"Energy Form 1",null,null,null,null,null,7]
[null,"Permit Compliance",null,null,null,null,null,8]
[null,"Improvements",null,null,null,null,null,9]
[null,"Public Liaison",null,null,null,null,null,10]
[null,"Residue Quality - Optional",null,null,null,null,null,11]
[null,"Emissions to Water",null,null,null,null,null,12]
[null,"Emissions to Air (periodically monitored)",null,null,null,null,null,13]
[null,"Emissions to Air (continuously monitored)",null,null,null,null,null,14]
[null,"Hydrogen Chloride emissions",null,null,null,null,null,15]
[null,"Sulphur Dioxide emissions",null,null,null,null,null,16]
[null,"Oxides of Nitrogen emissions",null,null,null,null,null,17]
[null,"Total Organic Carbon emissions",null,null,null,null,null,18]
[null,"Particulate Matter emissions",null,null,null,null,null,19]
[null,"Carbon Monoxide emissions",null,null,null,null,null,20]
[]
[]
["Version Control"]
["Section","Information",null,null,null,null,null,"Date"]
[]
[]
[]
[]
[]
[]
["Distribution"]
["Copy","Name, Role",null,null,null,null,null,"No."]
[1,"Graham Macro, EA ERP Installations Officer",null,null,null,null,null,1]
[]
[]
[]
[]
[]
[]
[]
["This report is required under the Industrial Emissions Directive’s Article 55(2) requirements on reporting and public information on waste incineration plants and co-incineration plants, which require the operator to produce an annual report on the functioning and monitoring of the plant and make it available to the public. "]

{"sheet":"Facility Info","index":2,"n_rows":27,"n_cols":11,"rows_kept":27,"cut":false,"hidden":false,"merged":[[26,0,54,8],[4,10,13,13],[26,10,35,13],[4,0,22,8]]}
[{"$f":"+'Cover Page'!$B$29","v":"Annual Performance Report 2021"},null,null,null,{"$f":"+'Cover Page'!$B$33","v":"Staffordshire Energy Recovery Facility"}]
[]
["Plant Description and Design",null,null,null,null,null,null,null,null,null,"Notes:"]
[]
["The ERF is operated by Veolia ES Staffordshire Ltd, a wholly owned subsidiary of Veolia. The plant is designed to burn predominantly residual municipal solid waste and has a capacity to process up to 340,000 tonnes annually. The facility has been built to serve Staffordshire County Council, its eight constituent Councils and its other partner authorities.\nThe facility can generate approximately 29MW of electricity from waste. The facility uses 3.2MW and the balance is exported to the national grid. In tangible terms the electricity generated is equivalent to 66,000 homes. \nTechnical details of the plant:\n     - Construcions Industrielles de la Mediterranee (CNIM) - Design\n     - Maximum Permitted Refuse throughput – 340,000 tonnes per annum\n     - Storage capacity 4,500 tonnes - Approximately four and a half days full plant capacity\n     - Number of tipping bays - 5\n     - Steam output – 64.5 tonnes of steam per hour at 400degC at 60bar\n     - Flue gas treatment - CNIM ammonia injection for the reduction of NOx, dry lime injection for the\n       removal of acid gases, activated carbon injection for removal of metals and dioxins followed by\n       high performance bag filters for removal of particulates, dispersal via two 80 metre high stacks\n     - Maximum energy generating capacity 29MW\n\nThe ERF is regulated by the Environment Agency and is certified in compliance with:\n     - ISO 9001:2008\n     - ISO 14001:2004\n     - ISO 45001:2018",null,null,null,null,null,null,null,null,null,"Include summary of plant design, design capacity, no. of combustion lines, electrical and heat capacity and any other general information that descibes the facility, its location and purpose "]
[]
[]
[]
[]
[]
[]
[]
[]
[]
[]
[]
[]
[]
[]
[]
[]
[]
[]
[]
["Summary of Operational Processes and Procedures"]
[]
["All gaseous emissions generated during the combustion process pass through an extensive flue gas cleaning process which starts in the boiler directly above the furnace with injected ammonia to reduce the levels of oxides of nitrogen. After the boiler, super heater and economiser the gases are cooled to approximately 150 degrees Celsius. Activated carbon is added to remove metals and dioxins and lime is added to remove acidic gases such as SO2 and HCl. Most of this reaction occurs in the bag filters where particulates are removed and APCr is formed. There is recirculation of APC where the used lime and carbon is recirculated further to remove chlorinated gases via a recirculation silo. This secondary reactant is recirculated back to the original process via a lab loop. The cleaned gasses are finally released into the atmosphere through the chimney after the bag house. \nIn compliance with the IED and EPR Permit, the flue gasses are continuously monitored using MCertS accredited equipment. In addition to the continuous monitoring, and extractive sampling campaign is undertaken twice a year by an approved service supplier. The organisation used for analysis and monitoring is accredited by the United Kingdom Accreditation Service (UKAS) and the Environment Agency's Monitoring Certification Scheme (MCertS).\nThrough the process there is continuous emissions monitoring of six main pollutants with ELVs using MCertS approved instruments. The pollutants measured in this way comprise: particulate matter (total), total organic carbon, carbon monoxide, sulphur dioxide, hydrogen chloride and oxides of nitrogen.\nStaffordshire ERF has an experienced Veolia management team from other existing plants. The plant has been designed using proven technology and experience and is performing well. The plant supports our company ethos, as we operate 10 facilities in the UK. Reliable environmental controls and a robust management system ensure that compliance with the Industrial Emissions Directive and EPR Permit.\nVeolia staff are aware of the environmental impacts of their work and exercise a high standard of housekeeping. Training and competency of staff is controlled by the Veolia Business Management System. The Management System covers training, awareness and competence. The company identifies the training requirements of its employees and provides suitable resources to ensure they have the required knowledge, skills and expertise to carry out their duties.",null,null,null,null,null,null,null,null,null,"Include summary of key processes and procedures such as (but not limited to); waste reception, control rooms, grate, bed and bolier, energy & heat  generation, cooling systems, residue management, emission controls, health and safety systems, maintenance"]

{"sheet":"Operational Summary","index":3,"n_rows":31,"n_cols":11,"rows_kept":31,"cut":false,"hidden":false,"merged":[[4,0,26,8],[30,0,51,8],[4,10,13,13],[30,10,39,13]]}
[{"$f":"+'Cover Page'!$B$29","v":"Annual Performance Report 2021"},null,null,null,{"$f":"+'Cover Page'!$B$33","v":"Staffordshire Energy Recovery Facility"}]
[]
["Summary of Plant Operations and Maintenance during the reporting year",null,null,null,null,null,null,null,null,null,"Notes:"]
[]
["Plant outage\nBoiler cleaning NDT surveys\nFull grate overhaul\nMain lube oil filters changed\nManual isolation valves replaced\nBoiler pressure parts, headers & tubes replaced\nSRVs overhauled, drum & superheater\nStainers opened up, cleaned & replaced where necessary\nRefractory inspection & repairs\nInstrument calibrations\nID fan bearings replaced\nPrimary & secondary air fan bearings replaced\nFinal economiser grit blasted\nACC clean\nFeed pump no.3 overhauled\nTurbine borescope examination\nAir ejector nozzles removed & inspected\n",null,null,null,null,null,null,null,null,null,"Include summary of key operational and/or mainteanance activity undertaken in the year, such as any major component upgrades and/or replacements "]
[]
[]
[]
[]
[]
[]
[]
[]
[]
[]
[]
[]
[]
[]
[]
[]
[]
[]
[]
[]
[]
[]
[]
["Summary of Residue Handling for the reporting year"]
[]
["The plant has undergone rigorous testing to prove that the IBA is non-hazardous. The IBA is of a consistently high standard and there have been no failures in the last 24 samples. IBA is transported to Blue Phoenix in Castle Bromwich, where it is reprocessed into a number of different graded aggregates. Metals are further extracted from the process and recycled. \nIn addition to Dioxins/Furans and dioxin-like PCB's, Total Organic Carbon, metals tested in IBA are Antimony, Cadmium, Thallium, Mercury, Lead, Chromium, Copper, Manganese, Nickel, Arsenic, Cobalt, Vanadium, Zinc and their compounds.\nAPC residue is the fine particulate matter that is removed at the end of the gas cleansing process. It contains residues from the waste gas and the reactants used to treat the gas. APC is captured in the bag house filters in the plant before the gas is emitted and dispersed through the ERFs two 80m stacks. The APC from the Staffordshire ERF is sent to another Veolia facility for use in their treatment facility, Empire Works, or, for permanent storage at Minosus.",null,null,null,null,null,null,null,null,null,"Include in here a summary of residue handling regimes and destinations "]

{"sheet":"Operational Data","index":4,"n_rows":65,"n_cols":11,"rows_kept":65,"cut":false,"hidden":false,"merged":[[3,1,3,2],[23,1,26,1],[28,1,29,1],[52,0,56,0],[7,1,20,1],[5,10,6,10],[7,10,18,10],[33,1,38,1],[30,2,30,5],[30,6,30,7]]}
[{"$f":"+'Cover Page'!$B$29","v":"Annual Performance Report 2021"},null,null,null,{"$f":"+'Cover Page'!$B$33","v":"Staffordshire Energy Recovery Facility"}]
[]
["Operational Data",null,null,null,null,null,null,null,null,null,"Notes:"]
["Plant Size",340000,null,"tonnes pa",null,"MWth",29,"MWe",null,null,"* - RDF to include SRF "]
["No. of combustion lines",2,null,"No. of Turbines:",null,1,null,null,null,null,"** - CHP plants only"]
[null,null,null,null,null,null,null,null,null,null,"2020 updates include;  heat in MWh, water in Litres, NCV in MJ/kg"]
["Waste types received","Unit","Q1","Q2","Q3","Q4","Year Total","%"]
["Household / Local Authority","tonnes",83840.47,73787.42,86591.89,85342.69,{"$f":"SUM(C8:F8)","v":329562.47000000003},{"$f":"IF(G8>0,G8/$G$18,\"-\")","v":0.99918370492636988},null,null,"Availabiity Definition: 'the availability of a line is to be calculated by the number of hours the line reported Continuously Monitored emission levels to the Regulator through the calendar year divided by the total number of hours in that year. \nThe overall plant availability is calculated as the Mean of all lines in the plant. For clarity this includes periods of Other Than Normal Operating Conditions (OTNOC) and abnormal operation.'  \n\nRationale: The primary function of an Energy from Waste facility is the disposal of waste. It follows therefore that the availability of a plant is determined by the period of time a facility spends undertaking this activity."]
["Commercial & Industrial ",null,86,79.34,75.2,0,{"$f":"SUM(C9:F9)","v":240.54000000000002},7.2928100212074816E-4]
["Hazardous ",null,null,null,null,null,0,"-"]
["Clinical",null,18.54,7.74,2.42,0,28.700000000000003,8.7014071509376712E-5]
["Waste wood (biomass) ",null,null,null,null,null,0,"-"]
["Refuse Derived Fuel * - H'hold/LA",null,null,null,null,null,{"$f":"SUM(C13:F13)","v":0},"-"]
["Refuse Derived Fuel *  - C&I",null,null,null,null,null,0,"-"]
["Other [Please specify]",null,null,null,null,null,0,"-"]
["Other [Please specify]"]
["Other [Please specify]"]
["Total waste received",null,{"$f":"SUM(C8:C17)","v":83945.01},{"$f":"SUM(D8:D17)","v":73874.5},{"$f":"SUM(E8:E17)","v":86669.51},{"$f":"SUM(F8:F17)","v":85342.69},{"$f":"SUM(G8:G17)","v":329831.71000000002},{"$f":"IF(G18>0,G18/$G$18,\"-\")","v":1}]
["Rejected Waste ",null,null,null,null,null,{"$f":"SUM(C19:F19)","v":0},{"$f":"IF(G19>0,G19/$G$18,\"-\")","v":"-"}]
["Unprocessed waste transferred out",null,null,null,null,null,{"$f":"SUM(C20:F20)","v":0},{"$f":"IF(G20>0,G20/$G$18,\"-\")","v":"-"}]
["Total waste combusted",null,87066,73396.5,89653.1,88833,{"$f":"SUM(C21:F21)","v":338948.6},{"$f":"IF(G21>0,G21/$G$18,\"-\")","v":1.0276410354844292}]
[]
["Energy Usage / Export","Unit","Q1","Q2","Q3","Q4","Year Total","KWh/te"]
["Power Generated","MWh",51586.9,48751.1,58471.8,58505,{"$f":"SUM(C24:F24)","v":217314.8},{"$f":"IF(G24>0,G24*1000/$G$21,\"-\")","v":641.14381944637034}]
["Power Exported",null,45597,41095,51983,52064,{"$f":"SUM(C25:F25)","v":190739},{"$f":"IF(G25>0,G25*1000/$G$21,\"-\")","v":562.73724098580146}]
["Power Used on site",null,{"$f":"(C24-C25)+C27","v":6044.9000000000015},{"$f":"(D24-D25)+D27","v":7834.0999999999985},6513.8000000000029,6473,{"$f":"SUM(C26:F26)","v":26865.800000000003},{"$f":"IF(G26>0,G26*1000/$G$21,\"-\")","v":79.262165413871031}]
["Power Imported",null,55,178,25,32,290,{"$f":"IF(G27>0,G27*1000/$G$21,\"-\")","v":0.85558695330206413}]
["Parasitic Load","%",{"$f":"IF(C24>0,1-C25/(C24+C27),\"-\")","v":0.1170541750013071},{"$f":"IF(D24>0,1-D25/(D24+D27),\"-\")","v":0.16011126303161105},{"$f":"IF(E24>0,1-E25/(E24+E27),\"-\")","v":0.11135309965673346},{"$f":"IF(F24>0,1-F25/(F24+F27),\"-\")","v":0.11057963339426347},{"$f":"IF(G24>0,1-G25/(G24+G27),\"-\")","v":0.12346143099784557}]
["Thermal Energy Produced **","MWh",null,null,null,null,{"$f":"SUM(C29:F29)","v":0},{"$f":"IF(G29>0,G29*1000/$G$21,\"-\")","v":"-"}]
["Thermal Energy Exported **",null,null,null,null,null,0,{"$f":"IF(G30>0,G30*1000/$G$21,\"-\")","v":"-"}]
["R1 value",null,null,null,null,null,0.73]
[]
["Waste Disposal & Recovery","Unit","Q1","Q2","Q3","Q4","Year Total","% inputs"]
["APC Residues - produced","tonnes",2035.2,1748.7,2024.6,2229.58,{"$f":"SUM(C34:F34)","v":8038.08},{"$f":"IF(G34>0,G34/$G$21,\"-\")","v":2.3714746129649158E-2}]
["IBA - produced",null,15910,14727.9,17687.099999999999,16556.91,64881.91,0.19142108862523702]
["Metals recycling",null,1515.3,1199.3,1229.0999999999999,1397.48,{"$f":"SUM(C36:F36)","v":5341.18},1.575808249392386E-2]
["Interceptor waste",null,76.459999999999994,null,124.1,0,{"$f":"SUM(C37:F37)","v":200.56},5.9171213570435172E-4]
["Other",null,0,0,0,0,0,"-"]
["Other",null,0,0,0,0,0,"-"]
[]
["Raw Material Usage","Unit","Q1","Q2","Q3","Q4","Year Total","kg or Ltr /te"]
["Mains Water","m3",11605,11754,14875,13049,{"$f":"SUM(C42:F42)","v":51283},{"$f":"IF(G42>0,G42*1000/$G$21,\"-\")","v":151.30022664203364}]
["Other Water","m3",null,null,null,null,0,{"$f":"IF(G43>0,G43/$G$21,\"-\")","v":"-"}]
["Ammonia","kgs",275100,223000,275100,273500,1046700,3.0880788414526572]
["Urea","kgs",null,null,null,null,{"$f":"SUM(C45:F45)","v":0},"-"]
["Activated Carbon","kgs",22800,16400,19300,22200,80700,0.23808919700509165]
["Lime / hydrated lime","kgs",1065100,939800,1013300,1116400,4134600,12.198309714216256]
["Fuel oil","ltrs",123140.5,113571.3,41956.5,69788,348456.3,1.0280505657790002]
["Gas","cf",0,0,0,0,0]
["Other",null,0,0,0,0,0]
[]
["Summary ","Line/Unit","Q1","Q2","Q3","Q4","Year Total",null,null,"Hrs in year "]
["Availability of waste combustion by line, hrs",1,2076,1762,2093.5,2162.5,{"$f":"SUM(C53:F53)","v":8094},{"$f":"G53/$J$53","v":0.92397260273972603},null,8760]
[null,2,2037,1730,2201,2101.5,8069.5,{"$f":"G54/$J$53","v":0.92117579908675795}]
[null,3,null,null,null,null,0,{"$f":"G55/$J$53","v":0}]
[null,4,null,null,null,null,0,0]
[null,5,null,null,null,null,{"$f":"SUM(C57:F57)","v":0},0]
["Overall Availability, mean avg. of all lines, hrs",null,{"$f":"AVERAGE(C53:C54)","v":2056.5},{"$f":"AVERAGE(D53:D54)","v":1746},{"$f":"AVERAGE(E53:E54)","v":2147.25},{"$f":"AVERAGE(F53:F54)","v":2132},{"$f":"AVERAGE(G53:G54)","v":8081.75},0.92257420091324205]
["Hours of turbine operations, hrs",1,2142.4,1944.2,2200.1999999999998,2188.6999999999998,8475.5,0.96752283105022829]
["Hours of turbine operations, hrs",2,null,null,null,null,0,"x %"]
["Hours of heat / steam export",null,null,null,null,null,0,{"$f":"IF(B61>0,G60/J53,\"n/a\")","v":"n/a"}]
["Net Calorific Value of waste","MJ/kg",null,null,null,null,null,"-"]
["Abnormal Events","qty.",null,null,null,null,0,{"$f":"IF(G63>0,\"yes\",\"no\")","v":"no"}]
["Abnormal operation","hours",null,null,null,null,0,{"$f":"+(G64)/J53","v":0}]
["Permit Breaches","qty.",null,null,null,null,0,{"$f":"IF(G65>0,\"yes\",\"no\")","v":"no"}]

{"sheet":"Perf. Form 1","index":5,"n_rows":54,"n_cols":10,"rows_kept":54,"cut":false,"hidden":false,"merged":[[9,0,9,9],[10,0,10,1],[10,2,10,3],[10,4,10,5],[10,6,10,7],[10,8,10,9],[2,0,2,4],[2,6,2,8],[3,1,3,4],[5,3,5,4],[5,6,5,7],[8,0,8,1],[8,2,8,3],[8,4,8,5],[8,6,8,7],[8,8,8,9],[11,0,11,1],[11,2,11,3],[11,4,11,5],[11,6,11,7],[11,8,11,9],[12,0,12,1],[12,2,12,3],[12,4,12,5],[12,6,12,7],[12,8,12,9],[15,0,15,1],[15,2,15,3],[15,4,15,5],[15,6,15,7],[15,8,15,9],[16,0,16,9],[13,0,13,1],[13,2,13,3],[13,4,13,5],[13,6,13,7],[13,8,13,9],[14,0,14,3],[14,4,14,5],[14,6,14,7],[14,8,14,9],[17,0,17,1],[17,2,17,3],[17,4,17,5],[17,6,17,7],[17,8,17,9],[18,0,18,1],[18,2,18,3],[18,4,18,5],[18,6,18,7],[18,8,18,9],[19,0,19,1],[19,2,19,3],[19,4,19,5],[19,6,19,7],[19,8,19,9],[20,0,20,1],[20,2,20,3],[20,4,20,5],[20,6,20,7],[20,8,20,9],[21,0,21,1],[21,2,21,3],[21,4,21,5],[21,6,21,7],[21,8,21,9],[22,0,22,3],[22,4,22,5],[22,6,22,7],[22,8,22,9],[31,0,31,3],[31,7,31,8],[32,0,32,3],[32,4,32,5],[32,7,32,8],[33,0,33,3],[33,4,33,5],[33,7,33,8],[23,0,23,3],[23,4,23,5],[23,6,23,7],[23,8,23,9],[25,0,25,9],[26,0,28,9],[36,0,36,3],[36,4,36,5],[36,7,36,8],[37,0,37,3],[37,4,37,5],[37,7,37,8],[34,0,34,3],[34,4,34,5],[34,7,34,8],[35,0,35,3],[35,4,35,5],[35,7,35,8],[47,0,47,1],[49,0,49,9],[50,0,51,9],[38,0,38,9],[39,0,40,9],[43,0,43,1],[43,2,43,9],[45,0,45,1],[46,0,46,1]]}
[{"$f":"+'Cover Page'!C39","v":2021}," Annual Reporting Performance Form 1"]
[]
[{"$f":"+'Cover Page'!B31","v":"Permit EPR/HP3431HK"},null,null,null,null,"Operator: ","Veolia ES Staffordshire Limited"]
["Facility:",{"$f":"+'Cover Page'!B33:I33","v":"Staffordshire Energy Recovery Facility"},null,null,null,"Form:","Performance 1"]
[]
["Reporting  Period from: ",null,null,"2021-01-01",null,"to:","2021-12-31"]
[]
[{"$f":"+A1","v":2021},"Annual Reporting of Waste Disposal and Recovery"]
["Waste Description",null,"Disposal Route(s)",null,"Disposal Tonnes",null,"Recovery Tonnes",null,"% / tonne of waste incinerated"]
["1) Hazardous Wastes"]
["APC Residues",null,"D09 / D12",null,{"$f":"'Operational Data'!G34","v":8038.08},null,null,null,{"$f":"IF((E11+G11)>0,(E11+G11)/'Operational Data'!$G$21, \"-\")","v":2.3714746129649158E-2}]
["IBA",null,null,null,null,null,null,null,{"$f":"IF((E12+G12)>0,(E12+G12)/'Operational Data'!$G$21, \"-\")","v":"-"}]
["Interceptor waste",null,"D09",null,{"$f":"'Operational Data'!G37","v":200.56},null,null,null,{"$f":"IF((E13+G13)>0,(E13+G13)/'Operational Data'!$G$21, \"-\")","v":5.9171213570435172E-4}]
[null,null,null,null,null,null,null,null,{"$f":"IF((E14+G14)>0,(E14+G14)/'Operational Data'!$G$21, \"-\")","v":"-"}]
["Total Hazardous Waste",null,null,null,{"$f":"SUM(E11:F14)","v":8238.64},null,{"$f":"SUM(G11:H14)","v":0},null,{"$f":"IF((E15+G15)>0,(E15+G15)/'Operational Data'!$G$21, \"-\")","v":2.430645826535351E-2}]
[]
["2) Non-Hazardous Wastes"]
["IBA",null,"R05",null,null,null,{"$f":"'Operational Data'!G35","v":64881.91},null,{"$f":"IF((E18+G18)>0,(E18+G18)/'Operational Data'!$G$21, \"-\")","v":0.19142108862523702}]
["Ferrous Metal",null,"R04",null,null,null,{"$f":"'Operational Data'!G36","v":5341.18},null,{"$f":"IF((E19+G19)>0,(E19+G19)/'Operational Data'!$G$21, \"-\")","v":1.575808249392386E-2}]
["Process Water",null,null,null,null,null,null,null,{"$f":"IF((E20+G20)>0,(E20+G20)/'Operational Data'!$G$21, \"-\")","v":"-"}]
[null,null,null,null,null,null,null,null,{"$f":"IF((E21+G21)>0,(E21+G21)/'Operational Data'!$G$21, \"-\")","v":"-"}]
[null,null,null,null,null,null,null,null,{"$f":"IF((E22+G22)>0,(E22+G22)/'Operational Data'!$G$21, \"-\")","v":"-"}]
["Total Non-Hazardous Waste",null,null,null,{"$f":"SUM(E18:F22)","v":0},null,{"$f":"SUM(G18:H22)","v":70223.09},null,{"$f":"IF((E23+G23)>0,(E23+G23)/'Operational Data'!$G$21, \"-\")","v":0.20717917111916084}]
["TOTAL WASTE",null,null,null,{"$f":"+E23+E15","v":8238.64},null,{"$f":"+G23+G15","v":70223.09},null,{"$f":"IF((E24+G24)>0,(E24+G24)/'Operational Data'!$G$21, \"-\")","v":0.23148562938451436}]
[]
["Operator’s comments :"]
[]
[]
[]
[]
[{"$f":"+A1","v":2021},"Annual Reporting of Water and Other Raw Material Usage"]
["Raw Material",null,null,null,"Usage",null,"Unit","Specific Usage",null,"Unit"]
["Mains Water",null,null,null,{"$f":"+'Operational Data'!G42","v":51283},null,"m3",{"$f":"IF(E33>0,E33/'Operational Data'!$G$21,\"-\")","v":0.15130022664203363},null,"m3/te"]
["Total Water",null,null,null,{"$f":"+'Operational Data'!G43+'Operational Data'!G42","v":51283},null,"m3",{"$f":"IF(E34>0,E34/'Operational Data'!$G$21,\"-\")","v":0.15130022664203363},null,"m3/te"]
["Urea / Ammonia",null,null,null,{"$f":"+'Operational Data'!G44","v":1046700},null,"kg",{"$f":"IF(E35>0,E35/'Operational Data'!$G$21,\"-\")","v":3.0880788414526572},null,"kg/te"]
["Activated Carbon",null,null,null,{"$f":"+'Operational Data'!G46","v":80700},null,"kg",{"$f":"IF(E36>0,E36/'Operational Data'!$G$21,\"-\")","v":0.23808919700509165},null,"kg/te"]
["Lime / hydrated lime / Sodium Bicarb.",null,null,null,{"$f":"+'Operational Data'!G47","v":4134600},null,"kg",{"$f":"IF(E37>0,E37/'Operational Data'!$G$21,\"-\")","v":12.198309714216256},null,"kg/te"]
[]
["Operator’s comments :"]
[]
[]
[]
[{"$f":"+A31","v":2021},"Annual Reporting of other performance indicators "]
["Parameter",null,"Results by Line"]
[null,null,"A1","A2","A3","A4","A5",null,"Turbine 1","Turbine 2"]
["Operating hours for the year, hours",null,{"$f":"'Operational Data'!G53","v":8094},{"$f":"'Operational Data'!G54","v":8069.5},null,null,null,null,{"$f":"'Operational Data'!G59","v":8475.5}]
["Number of periods of abnormal operation, qty."]
["Cumulative hours of abnormal operation for this year, hours"]
[]
["Operator’s comments :"]
[]
[]
[]
["Signed: ","Robert Foster",null,null,null,null,"Date:","2022-01-26"]

{"sheet":"Energy Form 1","index":6,"n_rows":29,"n_cols":8,"rows_kept":29,"cut":false,"hidden":false,"merged":[[2,6,2,8],[4,1,4,4],[6,3,6,4],[6,6,6,7],[8,0,8,2],[8,3,8,4],[8,6,8,8],[9,0,9,2],[9,3,9,4],[9,6,9,8],[10,0,10,2],[10,3,10,4],[10,6,10,8],[11,0,11,2],[11,3,11,4],[11,6,11,8],[12,0,12,2],[12,3,12,4],[12,6,12,8],[13,0,13,2],[13,3,13,4],[13,6,13,8],[14,0,14,2],[14,3,14,4],[14,6,14,8],[15,0,15,2],[15,3,15,4],[15,6,15,8],[17,0,17,8],[18,0,24,8]]}
[{"$f":"+'Cover Page'!C39","v":2021}," Annual Reporting of Energy Usage/Export"]
[]
[{"$f":"+'Cover Page'!B31","v":"Permit EPR/HP3431HK"},null,null,null,null,"Operator: ","Veolia ES Staffordshire Limited"]
[]
["Facility:",{"$f":"+'Cover Page'!B33:I33","v":"Staffordshire Energy Recovery Facility"},null,null,null,"Form:","Energy 1"]
[]
["Reporting  Period from: ",null,null,{"$f":"+'Perf. Form 1'!D6:E6","v":"2021-01-01"},null,"to:",{"$f":"+'Perf. Form 1'!G6:H6","v":"2021-12-31"}]
[]
["Energy Source",null,null,"Energy Usage",null,"Unit","Specific Usage (KWh/tonne incinerated"]
["Electricity Produced",null,null,{"$f":"+'Operational Data'!G24","v":217314.8},null,"MWh",{"$f":"+'Operational Data'!H24","v":641.14381944637034}]
["Electricity Imported   ",null,null,{"$f":"+'Operational Data'!G27","v":290},null,"MWh",{"$f":"+'Operational Data'!H27","v":0.85558695330206413}]
["Electricity Exported",null,null,{"$f":"+'Operational Data'!G25","v":190739},null,"MWh",{"$f":"+'Operational Data'!H25","v":562.73724098580146}]
["Gas Oil",null,null,{"$f":"'Operational Data'!G48","v":348456.3},null,"ltrs",{"$f":"'Operational Data'!H48","v":1.0280505657790002}]
["Steam/hot water exported",null,null,{"$f":"+'Operational Data'!G30","v":0},null,"GWh",{"$f":"+'Operational Data'!H30","v":"-"}]
[]
[]
[]
["Operator’s comments :"]
[]
[]
[]
[]
[]
[]
[]
[]
[]
[]
["Signed: ","Robert Foster",null,null,null,null,"Date:","2022-01-26"]

{"sheet":"Permit Compliance","index":7,"n_rows":31,"n_cols":12,"rows_kept":31,"cut":false,"hidden":false,"merged":[[8,11,16,14],[30,4,30,8],[9,0,9,1],[9,2,9,4],[9,5,9,8],[10,0,10,1],[10,2,10,4],[10,5,10,8],[11,0,11,1],[11,2,11,4],[11,5,11,8],[12,0,12,1],[12,2,12,4],[12,5,12,8],[13,0,13,1],[13,2,13,4],[7,0,7,1],[7,2,7,8],[8,0,8,1],[8,2,8,4],[8,5,8,8],[13,5,13,8],[14,0,14,1],[14,2,14,4],[14,5,14,8],[15,0,15,1],[15,2,15,4],[15,5,15,8],[21,7,21,9],[18,1,18,3],[18,4,18,6],[18,7,18,9],[19,1,19,3],[19,4,19,6],[19,7,19,9],[29,1,29,3],[29,4,29,6],[29,7,29,9],[26,1,26,3],[26,4,26,6],[26,7,26,9],[27,1,27,3],[27,4,27,6],[27,7,27,9],[23,0,23,10],[17,0,17,10],[28,1,28,3],[28,4,28,6],[28,7,28,9],[24,1,24,3],[24,4,24,6],[24,7,24,9],[25,1,25,3],[25,4,25,6],[25,7,25,9],[20,1,20,3],[20,4,20,6],[20,7,20,9],[21,1,21,3],[21,4,21,6]]}
[{"$f":"+'Cover Page'!$B$29","v":"Annual Performance Report 2021"},null,null,null,{"$f":"+'Cover Page'!$B$33","v":"Staffordshire Energy Recovery Facility"}]
[]
["Summary of Permit Compliance"]
[]
["Compliance with permit limits for continuously monitored pollutants"]
[]
["The plant met its emission limits as shown in the table below:"]
["Substance",null,"Percentage time compliant during operation",null,null,null,null,null,null,null,null,"Notes:"]
[null,null,"Half-hourly limit",null,null,"Daily limit",null,null,null,null,null,"Report to 2 decimal places, i.e. xx.xx%\n\nPlease provide a brief summary of each notification or non-compliance in the table (rather than just referring to notifications that were sent to the Regulator).  \n\n"]
["Particulates",null,1,null,null,1]
["Oxides of nitrogen",null,1,null,null,1]
["Sulphur dioxide",null,1,null,null,1]
["Carbon monoxide",null,"100% 95% of 10-min averages",null,null,1]
["Total organic carbon",null,1,null,null,1]
["Hydrogen chloride",null,1,null,null,1]
["Hydrogen fluoride",null,1,null,null,1]
[]
["Summary of any notifications or non-compliances under the permit"]
["Date","Summary of notification or non-compliance [including Line/Reference]",null,null,"Reason ",null,null,"Measures taken to prevent reoccurrence"]
[]
[]
[]
[]
["Summary of any complaints received and actions to taken to resolve them."]
["Date","Summary of complaint [including Line/Reference]",null,null,"Reason *",null,null,"Measures taken to prevent reoccurrence"]
[]
[]
[]
[]
[]
[null,null,null,null,"* including whether substantiated by the operator or the EA"]

{"sheet":"Improvements","index":8,"n_rows":39,"n_cols":5,"rows_kept":39,"cut":false,"hidden":false,"merged":[[37,0,37,9],[38,0,47,9],[4,0,4,9],[5,0,13,9],[15,0,15,9],[16,0,24,9],[26,0,26,9],[27,0,35,9]]}
[{"$f":"+'Cover Page'!$B$29","v":"Annual Performance Report 2021"},null,null,null,{"$f":"+'Cover Page'!$B$33","v":"Staffordshire Energy Recovery Facility"}]
[]
["Summary of Plant Improvements"]
[]
["Summary of any efficiency improvements that have been completed within the year."]
["n/a"]
[]
[]
[]
[]
[]
[]
[]
[]
[]
["Summary of any permit improvement conditions that have been completed within the year and the resulting environmental benefits."]
["All improvement conditions have been previously completed."]
[]
[]
[]
[]
[]
[]
[]
[]
[]
["Summary of any changes to the plant or operating techniques which required a variation to the permit and a summary of the resulting environmental impact."]
["n/a"]
[]
[]
[]
[]
[]
[]
[]
[]
[]
["Summary of any other improvements made to the plant or planned to be made and a summary of the resulting environmental benefits."]
["n/a"]

{"sheet":"Public Liasion","index":9,"n_rows":27,"n_cols":5,"rows_kept":27,"cut":false,"hidden":false,"merged":[[14,0,14,1],[14,2,14,9],[5,0,5,1],[5,2,5,9],[6,0,7,1],[6,2,7,9],[8,0,9,1],[8,2,9,9],[10,0,11,1],[10,2,11,9],[13,0,13,9],[15,0,16,1],[15,2,16,9],[17,0,18,1],[17,2,18,9],[19,0,20,1],[19,2,20,9],[21,0,22,1],[21,2,22,9],[23,0,24,1],[23,2,24,9],[26,0,26,9]]}
[{"$f":"+'Cover Page'!$B$29","v":"Annual Performance Report 2021"},null,null,null,{"$f":"+'Cover Page'!$B$33","v":"Staffordshire Energy Recovery Facility"}]
[]
["Details of Public & Stakeholder Liaison"]
[]
["Summary of events held during the reporting year."]
["Date",null,"Description"]
["Monthly",null,"Contract meeting with Staffordshire W2R partnership (held online due to COVID-19)"]
[]
["Quarterly",null,"W2R partners meetings (continue to be held online due to COVID-19)"]
[]
[null,null,"Three school visits on site."]
[]
[]
["List of events planned for next year"]
["Date",null,"Description"]
["Monthly",null,"Contract meeting with Staffordshire W2R partnership"]
[]
["Quarterly",null,"W2R partners meetings"]
[]
[]
[]
[]
[]
[]
[]
[]
["If you wish to be involved in the public liaison programme, please contact 0203 567 6300"]

{"sheet":"Residue Quality ","index":10,"n_rows":36,"n_cols":9,"rows_kept":36,"cut":false,"hidden":false,"merged":[[16,0,17,1],[16,2,17,9],[18,0,19,1],[18,2,19,9],[12,0,12,9],[13,0,13,1],[13,2,13,9],[5,0,6,9],[7,0,8,9],[9,0,10,9],[14,0,15,1],[14,2,15,9],[20,0,21,1],[20,2,21,9],[22,0,23,1],[22,2,23,9],[32,3,32,7],[27,2,28,2],[28,3,28,7],[28,8,28,9],[27,3,27,9],[26,0,26,9],[36,0,41,9],[33,3,33,7],[35,0,35,9],[27,0,28,1],[30,0,30,1],[31,0,31,1],[32,0,32,1],[33,0,33,1],[30,8,30,9],[31,8,31,9],[32,8,32,9],[33,8,33,9]]}
[{"$f":"+'Cover Page'!$B$29","v":"Annual Performance Report 2021"},null,null,null,null,null,{"$f":"+'Cover Page'!$B$33","v":"Staffordshire Energy Recovery Facility"}]
[]
["Residue Quality Monitoring Requirements"]
[]
["Summary of monitoring undertaken and compliance"]
["As per permit requirements"]
[]
[]
[]
[]
[]
[]
["Commentary on any specific events"]
["Date & Event",null,"Description"]
[]
[]
[]
[]
[]
[]
[]
[]
[]
[]
[]
[]
["Residue Quality Monitoring Results"]
["Parameter (unit) ",null,"Limit","Normal Operation "]
[null,null,null,"Bottom ash  ",null,null,null,null,"APC Residues"]
[null,null,null,"Q1","Q2","Q3","Q4","Average"]
["Loss on Ignition (average %)",null,"<5%"]
["Total Organic Carbon (average %)",null,"<3%",2.2999999999999998,1.1000000000000001,1.6,1.2,{"$f":"AVERAGE(D32:G32)","v":1.55}]
["No. of Assessments Undertaken",null,"---"]
["No. of Hazardous Results",null,"---",0]
[]
["Comments :"]

{"sheet":"Water","index":11,"n_rows":26,"n_cols":9,"rows_kept":26,"cut":false,"hidden":false,"merged":[[5,0,6,8],[7,0,8,8],[9,0,10,8],[12,0,12,8],[13,0,13,1],[13,2,13,8],[21,0,21,8],[22,0,22,1],[22,2,22,4],[14,0,15,1],[14,2,15,8],[16,0,17,1],[16,2,17,8],[18,0,19,1],[18,2,19,8],[23,0,23,1],[23,2,23,4],[24,0,24,1],[24,2,24,4],[25,0,25,1],[25,2,25,4],[29,0,29,1],[29,2,29,4],[26,0,26,1],[26,2,26,4],[27,0,27,1],[27,2,27,4],[28,0,28,1],[28,2,28,4]]}
[{"$f":"+'Cover Page'!$B$29","v":"Annual Performance Report 2021"},null,null,null,null,{"$f":"+'Cover Page'!$B$33","v":"Staffordshire Energy Recovery Facility"}]
[]
["Emissions to Water"]
[]
["Summary of monitoring undertaken and compliance"]
["As per Severn Trent discharge consent of trade effluent to public foul sewer"]
[]
[]
[]
[]
[]
[]
["Commentary on any specific events"]
["Date & Event"]
[]
[]
[]
[]
[]
[]
[]
["Emissions to Water / Sewer"]
["Parameter",null,"Monitoring Frequency",null,null,"Limit","Target","Max.","Average"]
["pH",null,"Periodic",null,null,"6-10",null,8.5,8.5]
["COD",null,"Periodic",null,null,800,null,38,38]
["Suspended Solids",null,"Periodic",null,null,400,null,9,9]

{"sheet":"Air (periodic)","index":12,"n_rows":41,"n_cols":14,"rows_kept":41,"cut":false,"hidden":false,"merged":[[5,13,8,16],[9,13,11,16],[8,0,8,10],[5,0,6,10],[11,0,11,1],[9,9,9,10],[12,0,12,1],[11,3,11,4],[12,3,12,4],[9,0,10,1],[9,3,10,4],[9,2,10,2],[16,0,16,1],[17,0,17,1],[18,0,18,1],[13,0,13,1],[14,0,14,1],[15,0,15,1],[41,0,41,10],[27,0,27,1],[28,0,28,1],[24,0,24,1],[25,0,25,1],[39,0,39,1],[29,0,29,1],[30,0,30,1],[31,0,31,1],[32,0,32,1],[33,0,33,1],[34,0,34,1],[39,3,39,4],[31,3,31,4],[32,3,32,4],[38,3,38,4],[40,0,40,10],[19,0,19,1],[20,0,20,1],[21,0,21,1],[36,3,36,4],[37,3,37,4],[35,0,35,1],[36,0,36,1],[37,0,37,1],[38,0,38,1],[26,0,26,1],[34,3,34,4],[22,0,22,1],[23,0,23,1],[22,3,22,4],[13,3,13,4],[14,3,14,4],[15,3,15,4],[16,3,16,4],[17,3,17,4],[18,3,18,4],[29,3,29,4],[35,3,35,4],[19,3,19,4],[20,3,20,4],[21,3,21,4],[24,3,24,4],[25,3,25,4],[26,3,26,4],[33,3,33,4],[27,3,27,4],[28,3,28,4],[30,3,30,4],[23,3,23,4]]}
[{"$f":"+'Cover Page'!$B$29","v":"Annual Performance Report 2021"},null,null,null,{"$f":"+'Cover Page'!$B$33","v":"Staffordshire Energy Recovery Facility"}]
[]
["Emissions to Air (periodically monitored)"]
[]
["Summary of monitoring undertaken, standards used and compliance",null,null,null,null,null,null,null,null,null,null,null,null,"Notes:"]
["As per permit requirements",null,null,null,null,null,null,null,null,null,null,null,null,"Template may require adjustment for any bespoke monitoring requirements of permit. "]
[]
[]
["Results of emissions to air that are periodically monitored"]
["Substance",null,"Ref. Period","Emission Limit Value",null,null,null,null,null,"Average",null,null,null,"User to add additional tables as necessary, depending on whether quarterly or bi-annual reporting is required for the compliance year"]
[null,null,null,null,null,"A1 (Q1/2)","A2 (Q1/2)","A1 (Q3/4)","A2 (Q3/4)","A1","A2"]
["Hydrogen fluoride",null,"1 hr","2 mg/m3",null,7.0000000000000007E-2,0.04,0.01,7.0000000000000007E-2,{"$f":"AVERAGE(F12,H12)","v":0.04},{"$f":"AVERAGE(G12,I12)","v":5.5000000000000007E-2}]
["Cd and Th and their compounds",null,"6-8hrs","0.05 mg/m3",null,5.5999999999999995E-4,5.2999999999999998E-4,5.5999999999999995E-4,5.1000000000000004E-4,{"$f":"AVERAGE(F13,H13)","v":5.5999999999999995E-4},{"$f":"AVERAGE(G13,I13)","v":5.2000000000000006E-4}]
["Hg and its compounds",null,"6-8hrs","0.05 mg/m3",null,8.1999999999999998E-4,2.2000000000000001E-3,5.5999999999999995E-4,5.9999999999999995E-4,6.8999999999999997E-4,1.4E-3]
["Sb, As, Pb, Cr, Co, Cu, Mn, Ni, V and their compounds",null,"6-8hrs","0.5 mg/m3",null,1.7999999999999999E-2,1.4E-2,0.03,0.02,2.4E-2,1.7000000000000001E-2]
["Dioxins & Furans (I-TEQ)",null,"6-8hrs","0.1 ng/m3",null,2.1999999999999999E-2,1.2E-2,5.0000000000000001E-3,6.4000000000000003E-3,1.35E-2,9.1999999999999998E-3]
["PCBs (WHO-TEQ Humans / Mammals)",null,"6-8hrs","None set ng/m3",null,4.5999999999999999E-3,2.5999999999999999E-3,1.6000000000000001E-3,2.3E-3,3.0999999999999999E-3,2.4499999999999999E-3]
["PCBs (WHO-TEQ Fish)",null,"6-8hrs","None set ng/m3",null,2.5000000000000001E-4,1.3999999999999999E-4,8.8999999999999995E-5,1.2E-4,1.695E-4,1.2999999999999999E-4]
["PCBs (WHO-TEQ Birds)",null,"6-8hrs","None set ng/m3",null,1.2E-2,6.6E-3,6.0000000000000001E-3,5.1000000000000004E-3,9.0000000000000011E-3,5.8500000000000002E-3]
["Dioxins & Furans (WHO-TEQ Humans / Mammals)",null,"6-8hrs","None set ng/m3",null,2.5000000000000001E-2,1.4E-2,5.1999999999999998E-3,7.3000000000000001E-3,1.5100000000000001E-2,1.065E-2]
["Dioxins & Furans (WHO-TEQ Fish)",null,"6-8hrs","None set ng/m3",null,2.4E-2,1.2999999999999999E-2,4.7999999999999996E-3,7.1000000000000004E-3,1.44E-2,1.005E-2]
["Dioxins & Furans (WHO-TEQ Birds)",null,"6-8hrs","None set ng/m3",null,3.4000000000000002E-2,1.9E-2,7.4000000000000003E-3,9.4000000000000004E-3,2.0700000000000003E-2,1.4200000000000001E-2]
["Nitrous Oxide (N2O)",null,"1hr","None set ng/m4",null,0.22,0.21,0.23,0.94,0.22500000000000001,0.57499999999999996]
["Total PAH",null,"6-8hrs","None set ng/m5",null,0.11,0.15,0.09,0.09,0.1,0.12]
["Anthanthrene",null,"6-8hrs","None set µg/m3",null,1.2999999999999999E-3,1.2999999999999999E-3,1.2999999999999999E-3,1.2999999999999999E-3,1.2999999999999999E-3,1.2999999999999999E-3]
["Benzo(a)anthracene",null,"6-8hrs","None set µg/m3",null,1.2999999999999999E-3,1.2999999999999999E-3,1.2999999999999999E-3,1.2999999999999999E-3,1.2999999999999999E-3,1.2999999999999999E-3]
["Benzo(a)pyrene",null,"6-8hrs","None set µg/m3",null,1.2999999999999999E-3,1.2999999999999999E-3,1.2999999999999999E-3,1.2999999999999999E-3,1.2999999999999999E-3,{"$f":"AVERAGE(G27,I27)","v":1.2999999999999999E-3}]
["Benzo(b)fluoranthene",null,"6-8hrs","None set µg/m3",null,1.2999999999999999E-3,1.2999999999999999E-3,1.2999999999999999E-3,1.2999999999999999E-3,1.2999999999999999E-3,1.2999999999999999E-3]
["Benzo(b)naptho(2,1-d) thiophene",null,"6-8hrs","None set µg/m3",null,2.2000000000000001E-3,1.2999999999999999E-3,1.2999999999999999E-3,1.2999999999999999E-3,1.75E-3,1.2999999999999999E-3]
["Benzo(c)phenanthrene",null,"6-8hrs","None set µg/m3",null,1.2999999999999999E-3,1.2999999999999999E-3,1.2999999999999999E-3,1.2999999999999999E-3,1.2999999999999999E-3,1.2999999999999999E-3]
["Benzo(ghi)perylene",null,"6-8hrs","None set µg/m3",null,7.4999999999999997E-3,2.1999999999999999E-2,1.5E-3,3.0000000000000001E-3,4.4999999999999997E-3,1.2499999999999999E-2]
["Benzo(k)fluoranthene",null,"6-8hrs","None set µg/m3",null,1.2999999999999999E-3,1.2999999999999999E-3,1.2999999999999999E-3,1.2999999999999999E-3,1.2999999999999999E-3,1.2999999999999999E-3]
["Cholanthrene",null,"6-8hrs","None set µg/m3",null,1.2999999999999999E-3,1.2999999999999999E-3,1.2999999999999999E-3,1.2999999999999999E-3,1.2999999999999999E-3,1.2999999999999999E-3]
["Chrysene",null,"6-8hrs","None set µg/m3",null,1.2999999999999999E-3,1.2999999999999999E-3,1.2999999999999999E-3,1.2999999999999999E-3,1.2999999999999999E-3,1.2999999999999999E-3]
["Cyclopenta(cd)pyrene",null,"6-8hrs","None set µg/m3",null,1.2999999999999999E-3,1.2999999999999999E-3,1.2999999999999999E-3,1.2999999999999999E-3,1.2999999999999999E-3,1.2999999999999999E-3]
["Dibenzo(ai)pyrene",null,"6-8hrs","None set µg/m3",null,1.2999999999999999E-3,1.2999999999999999E-3,1.2999999999999999E-3,1.2999999999999999E-3,1.2999999999999999E-3,1.2999999999999999E-3]
["Dibenzo(ah)anthracene",null,"6-8hrs","None set µg/m3",null,1.2999999999999999E-3,1.2999999999999999E-3,1.2999999999999999E-3,1.2999999999999999E-3,1.2999999999999999E-3,1.2999999999999999E-3]
["Fluoranthene",null,"6-8hrs","None set µg/m3",null,2.7E-2,2.1999999999999999E-2,1.7999999999999999E-2,9.9000000000000008E-3,2.2499999999999999E-2,1.5949999999999999E-2]
["Indeno(123-cd) pyrene",null,"6-8hrs","None set µg/m3",null,1.2999999999999999E-3,3.2000000000000002E-3,1.2999999999999999E-3,1.2999999999999999E-3,1.2999999999999999E-3,2.2500000000000003E-3]
["Naphthalene",null,"6-8hrs","None set µg/m3",null,5.7000000000000002E-2,8.5999999999999993E-2,5.5E-2,5.7000000000000002E-2,{"$f":"AVERAGE(F40,H40)","v":5.6000000000000001E-2},{"$f":"AVERAGE(G40,I40)","v":7.1499999999999994E-2}]
["Comments :"]

{"sheet":"Air (CEMS)","index":13,"n_rows":27,"n_cols":16,"rows_kept":27,"cut":false,"hidden":false,"merged":[[19,0,20,0],[21,0,22,0],[23,0,24,0],[25,0,25,12],[27,0,28,12],[15,0,16,0],[17,0,18,0],[13,0,14,0],[5,0,6,12],[7,0,8,12],[10,0,10,12],[11,0,12,0],[11,2,12,2],[11,1,12,1],[11,3,11,4],[11,5,11,6],[11,7,11,8],[11,9,11,10],[11,11,11,12]]}
[{"$f":"+'Cover Page'!$B$29","v":"Annual Performance Report 2021"},null,null,null,null,null,null,null,{"$f":"+'Cover Page'!$B$33","v":"Staffordshire Energy Recovery Facility"}]
[]
["Emissions to Air (continuously monitored)"]
[null,null,null,null,null,null,null,null,null,null,null,null,null,null,null,"Notes:"]
["Summary of monitoring undertaken, standards used and compliance",null,null,null,null,null,null,null,null,null,null,null,null,null,null,"Template may require adjustment for any bespoke monitoring requirements of permit"]
["MCERTS CEMs System",null,null,null,null,null,null,null,null,null,null,null,null,null,null,"Report to 2 decimal places, i.e. xx.xx%"]
[]
[]
[]
[]
["Results of emissions to air that are continuously monitored (maximum and average values for each line)"]
["Substance","Reference Period","Emission Limit Value","A1",null,"A2",null,"A3",null,"A4",null,"A5"]
[null,null,null,"Max.","Avg.","Max.","Avg.","Max.","Avg.","Max.","Avg.","Max.","Avg."]
["Oxides of nitrogen","Daily mean","200 mg/m3 ",{"$f":"NOx!O19","v":197.7},{"$f":"NOx!N19","v":148.00833333333333},{"$f":"NOx!O34","v":180.9},{"$f":"NOx!N34","v":160.11666666666667}]
[null,"½ hourly mean","400 mg/m3 ",{"$f":"NOx!M19","v":321.39999999999998},{"$f":"NOx!L19","v":148.03333333333333},{"$f":"NOx!M34","v":319},{"$f":"NOx!L34","v":160.22499999999999}]
["Particulates","Daily mean","10 mg/m3",{"$f":"Particulates!O19","v":2.5},{"$f":"Particulates!N19","v":0.30833333333333329},{"$f":"Particulates!O34","v":0.3},{"$f":"Particulates!N34","v":0.20833333333333334}]
[null,"½ hourly mean","30 mg/m3 ",{"$f":"Particulates!M19","v":4.4000000000000004},{"$f":"Particulates!L19","v":0.35833333333333334},{"$f":"Particulates!M34","v":1.7},{"$f":"Particulates!L34","v":0.29999999999999993}]
["Total Organic Carbon ","Daily mean","10 mg/m3 ",{"$f":"TOC!O19","v":0.6},{"$f":"TOC!N19","v":6.6666666666666666E-2},{"$f":"TOC!O34","v":1.4},{"$f":"TOC!N34","v":8.3333333333333332E-3}]
[null,"½ hourly mean","20 mg/m3 ",{"$f":"TOC!M19","v":15.5},{"$f":"TOC!L19","v":8.3333333333333329E-2},{"$f":"TOC!M34","v":11.6},{"$f":"TOC!L34","v":2.5000000000000005E-2}]
["Hydrogen chloride ","Daily mean","10 mg/m3 ",{"$f":"HCl!O19","v":8.4},{"$f":"HCl!N19","v":3.2166666666666663},{"$f":"HCl!O34","v":9.5},{"$f":"HCl!N34","v":3.3666666666666667}]
[null,"½ hourly mean","60 mg/m3 ",{"$f":"HCl!M19","v":22.5},{"$f":"HCl!L19","v":3.2666666666666662},{"$f":"HCl!M34","v":28.4},{"$f":"HCl!L34","v":3.6166666666666671}]
["Sulphur dioxide","Daily mean","50 mg/m3 ",{"$f":"'SO2'!O19","v":49.3},{"$f":"'SO2'!N19","v":34.816666666666663},{"$f":"'SO2'!O34","v":48.5},{"$f":"'SO2'!N34","v":35.341666666666661}]
[null,"½ hourly mean","200 mg/m3 ",{"$f":"'SO2'!M19","v":153.80000000000001},{"$f":"'SO2'!L19","v":34.82500000000001},{"$f":"'SO2'!M34","v":178.1},{"$f":"'SO2'!L34","v":35.4}]
["Carbon monoxide ","Daily mean","50 mg/m3 ",{"$f":"'CO 95% 10 min'!Q19","v":6.8},{"$f":"'CO 95% 10 min'!P19","v":3.5333333333333332},{"$f":"'CO 95% 10 min'!Q34","v":9.8000000000000007},{"$f":"'CO 95% 10 min'!P34","v":2.8416666666666663}]
[null,"95%ile 10-min avg *","150 mg/m3 *",{"$f":"'CO 95% 10 min'!M19","v":8.5916666666666668},{"$f":"'CO 95% 10 min'!N19","v":3.6166666666666667},{"$f":"'CO 95% 10 min'!M34","v":10.416666666666666},{"$f":"'CO 95% 10 min'!N34","v":2.9083333333333337}]
["* = delete or amend as appropriate"]
["Comments :"]

{"sheet":"HCl","index":14,"n_rows":79,"n_cols":17,"rows_kept":79,"cut":false,"hidden":false,"merged":[[12,16,15,18],[51,9,63,9],[66,9,78,9],[4,9,4,14],[4,1,4,3],[4,4,4,6],[48,0,51,6],[47,0,47,6],[6,9,18,9],[21,9,33,9],[36,9,48,9],[3,16,7,18],[9,16,11,18]]}
[{"$f":"+'Cover Page'!$B$29","v":"Annual Performance Report 2021"},null,null,null,{"$f":"+'Cover Page'!$B$33","v":"Staffordshire Energy Recovery Facility"}]
[]
["Monitoring of Hydrogen Chloride emissions",null,null,"Whole Installation",null,null,"See  Notes in Cell Q3",null,null,{"$f":"+A3","v":"Monitoring of Hydrogen Chloride emissions"},null,null,null,"Per Combustion Line",null,null,"Notes:"]
[null,null,null,null,null,null,null,null,null,null,null,null,null,null,null,null,"User to add logic to complete Whole installation, Table A5:G18. From the data in Per Combustion Line, Table J6:O79, subject to No. of lines installed"]
["mg/Nm3","1/2 Hourly Reference Periods",null,null,"Daily Reference Periods"]
[{"$f":"+'Cover Page'!C39","v":2021},"1/2 hourly HCl ELV","Monthly 1/2 hourly mean","Highest 1/2 hourly maximum","Daily HCl ELV","Monthly daily mean","Highest daily maximum",null,null,{"$f":"+A6","v":2021},"mg/Nm3","Monthly 1/2 hourly mean","Monthly 1/2 hourly maximum","Monthly daily mean","Monthly daily maximum"]
["Jan",60,{"$f":"AVERAGE(L7,L22)","v":5.75},{"$f":"MAX(M7,M22)","v":28.4},10,{"$f":"AVERAGE(N7,N22)","v":4.3},{"$f":"MAX(O7,O22)","v":8.4},null,null,"A1","Jan",5.0999999999999996,13.6,5,8.4]
["Feb",60,{"$f":"AVERAGE(L8,L23)","v":6.2},{"$f":"MAX(M8,M23)","v":25.3},10,{"$f":"AVERAGE(N8,N23)","v":6.15},{"$f":"MAX(O8,O23)","v":9.5},null,null,null,"Feb",5,22.5,4.9000000000000004,7.2]
["Mar",60,{"$f":"AVERAGE(L9,L24)","v":5.45},19,10,5.45,8.4,null,null,null,"Mar",5.5,19,5.5,8.4,null,"Whole Installation table A5:G18:"]
["Apr",60,2.95,17.7,10,2.9,6.6,null,null,null,"Apr",3.3,15.7,3.3,5.7,null,"Mean: for 1/2 hourly and daily periods calculate mean of values across all operational combustion lines for the month"]
["May",60,2.95,16.8,10,2.95,6.2,null,null,null,"May",3.2,10.4,3.2,6.2]
["Jun",60,{"$f":"AVERAGE(L12,L27)","v":2.7},9,10,2.65,4.5999999999999996,null,null,null,"Jun",2.4,5.8,2.2999999999999998,4.3]
["Jul",60,2.35,9.9,10,2.35,4.9000000000000004,null,null,null,"Jul",2,7.5,2,3.6,null,"Maximum: for 1/2 hourly and daily periods use the highest value across all operational combustion lines for the month"]
["Aug",60,2.75,7.7,10,2.75,4.7,null,null,null,"Aug",2.4,6.2,2.4,3.2]
["Sep",60,2.85,14,10,2.8,5.6,null,null,null,"Sep",2.6,9.6,2.6,4]
["Oct",60,3.25,10,10,3.2,5.4,null,null,null,"Oct",3.3,10,3.2,4.4000000000000004]
["Nov",60,2.25,10.3,10,2.2000000000000002,3.8,null,null,null,"Nov",2.5,10.3,2.4,3.8]
["Dec",60,1.85,9.1,10,1.8,3.3,null,null,null,"Dec",1.9,9.1,1.8,3]
[null,null,null,null,null,null,null,null,null,null,"Annual",{"$f":"AVERAGE(L7:L18)","v":3.2666666666666662},{"$f":"MAX(M7:M18)","v":22.5},{"$f":"AVERAGE(N7:N18)","v":3.2166666666666663},{"$f":"MAX(O7:O18)","v":8.4}]
[]
[null,null,null,null,null,null,null,null,null,{"$f":"+A6","v":2021},"mg/Nm3","Monthly 1/2 hourly mean","Monthly 1/2 hourly maximum","Monthly daily mean","Monthly daily maximum"]
[null,null,null,null,null,null,null,null,null,"A2","Jan",6.4,28.4,3.6,8.4]
[null,null,null,null,null,null,null,null,null,null,"Feb",7.4,25.3,7.4,9.5]
[null,null,null,null,null,null,null,null,null,null,"Mar",5.4,18.899999999999999,5.4,7]
[null,null,null,null,null,null,null,null,null,null,"Apr",2.6,17.7,2.5,6.6]
[null,null,null,null,null,null,null,null,null,null,"May",2.7,16.8,2.7,5.5]
[null,null,null,null,null,null,null,null,null,null,"Jun",3,9,3,4.5999999999999996]
[null,null,null,null,null,null,null,null,null,null,"Jul",2.7,9.9,2.7,4.9000000000000004]
[null,null,null,null,null,null,null,null,null,null,"Aug",3.1,7.7,3.1,4.7]
[null,null,null,null,null,null,null,null,null,null,"Sep",3.1,14,3,5.6]
[null,null,null,null,null,null,null,null,null,null,"Oct",3.2,7.5,3.2,5.4]
[null,null,null,null,null,null,null,null,null,null,"Nov",2,5.8,2,3.2]
[null,null,null,null,null,null,null,null,null,null,"Dec",1.8,6.3,1.8,3.3]
[null,null,null,null,null,null,null,null,null,null,"Annual",{"$f":"AVERAGE(L22:L33)","v":3.6166666666666671},{"$f":"MAX(M22:M33)","v":28.4},{"$f":"AVERAGE(N22:N33)","v":3.3666666666666667},{"$f":"MAX(O22:O33)","v":9.5}]
[]
[null,null,null,null,null,null,null,null,null,{"$f":"+A6","v":2021},"mg/Nm3","Monthly 1/2 hourly mean","Monthly 1/2 hourly maximum","Monthly daily mean","Monthly daily maximum"]
[null,null,null,null,null,null,null,null,null,"A3","Jan"]
[null,null,null,null,null,null,null,null,null,null,"Feb"]
[null,null,null,null,null,null,null,null,null,null,"Mar"]
[null,null,null,null,null,null,null,null,null,null,"Apr"]
[null,null,null,null,null,null,null,null,null,null,"May"]
[null,null,null,null,null,null,null,null,null,null,"Jun"]
[null,null,null,null,null,null,null,null,null,null,"Jul"]
[null,null,null,null,null,null,null,null,null,null,"Aug"]
[null,null,null,null,null,null,null,null,null,null,"Sep"]
[null,null,null,null,null,null,null,null,null,null,"Oct"]
[null,null,null,null,null,null,null,null,null,null,"Nov"]
["Comments :",null,null,null,null,null,null,null,null,null,"Dec"]
[null,null,null,null,null,null,null,null,null,null,"Annual",{"$f":"AVERAGE(L37:L48)","v":{"$error":"#DIV/0!"}},{"$f":"MAX(M37:M48)","v":0},{"$f":"AVERAGE(N37:N48)","v":{"$error":"#DIV/0!"}},{"$f":"MAX(O37:O48)","v":0}]
[]
[null,null,null,null,null,null,null,null,null,{"$f":"+A6","v":2021},"mg/Nm3","Monthly 1/2 hourly mean","Monthly 1/2 hourly maximum","Monthly daily mean","Monthly daily maximum"]
[null,null,null,null,null,null,null,null,null,"A4","Jan"]
[null,null,null,null,null,null,null,null,null,null,"Feb"]
[null,null,null,null,null,null,null,null,null,null,"Mar"]
[null,null,null,null,null,null,null,null,null,null,"Apr"]
[null,null,null,null,null,null,null,null,null,null,"May"]
[null,null,null,null,null,null,null,null,null,null,"Jun"]
[null,null,null,null,null,null,null,null,null,null,"Jul"]
[null,null,null,null,null,null,null,null,null,null,"Aug"]
[null,null,null,null,null,null,null,null,null,null,"Sep"]
[null,null,null,null,null,null,null,null,null,null,"Oct"]
[null,null,null,null,null,null,null,null,null,null,"Nov"]
[null,null,null,null,null,null,null,null,null,null,"Dec"]
[null,null,null,null,null,null,null,null,null,null,"Annual",{"$f":"AVERAGE(L52:L63)","v":{"$error":"#DIV/0!"}},{"$f":"MAX(M52:M63)","v":0},{"$f":"AVERAGE(N52:N63)","v":{"$error":"#DIV/0!"}},{"$f":"MAX(O52:O63)","v":0}]
[]
[null,null,null,null,null,null,null,null,null,{"$f":"+A6","v":2021},"mg/Nm3","Monthly 1/2 hourly mean","Monthly 1/2 hourly maximum","Monthly daily mean","Monthly daily maximum"]
[null,null,null,null,null,null,null,null,null,"A5","Jan"]
[null,null,null,null,null,null,null,null,null,null,"Feb"]
[null,null,null,null,null,null,null,null,null,null,"Mar"]
[null,null,null,null,null,null,null,null,null,null,"Apr"]
[null,null,null,null,null,null,null,null,null,null,"May"]
[null,null,null,null,null,null,null,null,null,null,"Jun"]
[null,null,null,null,null,null,null,null,null,null,"Jul"]
[null,null,null,null,null,null,null,null,null,null,"Aug"]
[null,null,null,null,null,null,null,null,null,null,"Sep"]
[null,null,null,null,null,null,null,null,null,null,"Oct"]
[null,null,null,null,null,null,null,null,null,null,"Nov"]
[null,null,null,null,null,null,null,null,null,null,"Dec"]
[null,null,null,null,null,null,null,null,null,null,"Annual",{"$f":"AVERAGE(L67:L78)","v":{"$error":"#DIV/0!"}},{"$f":"MAX(M67:M78)","v":0},{"$f":"AVERAGE(N67:N78)","v":{"$error":"#DIV/0!"}},{"$f":"MAX(O67:O78)","v":0}]

{"sheet":"SO2","index":15,"n_rows":79,"n_cols":17,"rows_kept":79,"cut":false,"hidden":false,"merged":[[3,16,7,18],[9,16,11,18],[12,16,15,18],[66,9,78,9],[4,1,4,3],[4,4,4,6],[4,9,4,14],[6,9,18,9],[21,9,33,9],[36,9,48,9],[47,0,47,6],[48,0,51,6],[51,9,63,9]]}
[{"$f":"+'Cover Page'!$B$29","v":"Annual Performance Report 2021"},null,null,null,{"$f":"+'Cover Page'!$B$33","v":"Staffordshire Energy Recovery Facility"}]
[]
["Monitoring of Sulphur dioxide emissions",null,null,"Whole Installation",null,null,"See  Notes in Cell Q3",null,null,{"$f":"+A3","v":"Monitoring of Sulphur dioxide emissions"},null,null,null,"Per Combustion Line",null,null,"Notes:"]
[null,null,null,null,null,null,null,null,null,null,null,null,null,null,null,null,"User to add logic to complete Whole installation, Table A5:G18. From the data in Per Combustion Line, Table J6:O79, subject to No. of lines installed"]
["mg/Nm3","1/2 Hourly Reference Periods",null,null,"Daily Reference Periods"]
[{"$f":"+'Cover Page'!C39","v":2021},"1/2 hourly SO2 ELV","Monthly 1/2 hourly mean","Highest 1/2 hourly maximum","Daily SO2 ELV","Monthly daily mean","Highest daily maximum",null,null,{"$f":"+A6","v":2021},"mg/Nm3","Monthly 1/2 hourly mean","Monthly 1/2 hourly maximum","Monthly daily mean","Monthly daily maximum"]
["Jan",200,{"$f":"AVERAGE(L7,L22)","v":31.9},{"$f":"MAX(M7,M22)","v":110.4},50,{"$f":"AVERAGE(N7,N22)","v":31.8},{"$f":"MAX(O7,O22)","v":47.8},null,null,"A1","Jan",39.9,110.4,39.700000000000003,47.8]
["Feb",200,{"$f":"AVERAGE(L8,L23)","v":37.299999999999997},{"$f":"MAX(M8,M23)","v":135.9},50,{"$f":"AVERAGE(N8,N23)","v":37.35},{"$f":"MAX(O8,O23)","v":49.3},null,null,null,"Feb",43.7,135.9,43.9,49.3]
["Mar",200,38.799999999999997,153.80000000000001,50,38.75,48.6,null,null,null,"Mar",42.6,153.80000000000001,42.4,48.6,null,"Whole Installation table A5:G18:"]
["Apr",200,34.75,114.3,50,34.5,46.8,null,null,null,"Apr",43.1,114.3,43.2,46.8,null,"Mean: for 1/2 hourly and daily periods calculate mean of values across all operational combustion lines for the month"]
["May",200,43.8,135.69999999999999,50,43.8,47.7,null,null,null,"May",42.9,116.5,42.9,47]
["Jun",200,38.849999999999994,146.6,50,38.9,47,null,null,null,"Jun",35.299999999999997,138.69999999999999,35.4,42.9]
["Jul",200,30.2,138.69999999999999,50,30.4,43.8,null,null,null,"Jul",25.6,112.3,25.9,39.5,null,"Maximum: for 1/2 hourly and daily periods use the highest value across all operational combustion lines for the month"]
["Aug",200,33.799999999999997,178.1,50,33.700000000000003,48.5,null,null,null,"Aug",28.3,120.7,28.2,46.3]
["Sep",200,28.6,120.7,50,28.549999999999997,44,null,null,null,"Sep",23.8,103.8,23.7,40]
["Oct",200,35.450000000000003,113,50,35.4,47.4,null,null,null,"Oct",30.6,111.9,30.5,42.6]
["Nov",200,33.9,123.4,50,33.799999999999997,46.9,null,null,null,"Nov",31,120.6,30.9,39.5]
["Dec",200,34,156.19999999999999,50,34,48.2,null,null,null,"Dec",31.1,148.19999999999999,31.1,46.4]
[null,null,null,null,null,null,null,null,null,null,"Annual",{"$f":"AVERAGE(L7:L18)","v":34.82500000000001},{"$f":"MAX(M7:M18)","v":153.80000000000001},{"$f":"AVERAGE(N7:N18)","v":34.816666666666663},{"$f":"MAX(O7:O18)","v":49.3}]
[]
[null,null,null,null,null,null,null,null,null,{"$f":"+A6","v":2021},"mg/Nm3","Monthly 1/2 hourly mean","Monthly 1/2 hourly maximum","Monthly daily mean","Monthly daily maximum"]
[null,null,null,null,null,null,null,null,null,"A2","Jan",23.9,98.7,23.9,40.9]
[null,null,null,null,null,null,null,null,null,null,"Feb",30.9,126.4,30.8,47.7]
[null,null,null,null,null,null,null,null,null,null,"Mar",35,148.69999999999999,35.1,44.9]
[null,null,null,null,null,null,null,null,null,null,"Apr",26.4,96.4,25.8,40.5]
[null,null,null,null,null,null,null,null,null,null,"May",44.7,135.69999999999999,44.7,47.7]
[null,null,null,null,null,null,null,null,null,null,"Jun",42.4,146.6,42.4,47]
[null,null,null,null,null,null,null,null,null,null,"Jul",34.799999999999997,138.69999999999999,34.9,43.8]
[null,null,null,null,null,null,null,null,null,null,"Aug",39.299999999999997,178.1,39.200000000000003,48.5]
[null,null,null,null,null,null,null,null,null,null,"Sep",33.4,120.7,33.4,44]
[null,null,null,null,null,null,null,null,null,null,"Oct",40.299999999999997,113,40.299999999999997,47.4]
[null,null,null,null,null,null,null,null,null,null,"Nov",36.799999999999997,123.4,36.700000000000003,46.9]
[null,null,null,null,null,null,null,null,null,null,"Dec",36.9,156.19999999999999,36.9,48.2]
[null,null,null,null,null,null,null,null,null,null,"Annual",{"$f":"AVERAGE(L22:L33)","v":35.4},{"$f":"MAX(M22:M33)","v":178.1},{"$f":"AVERAGE(N22:N33)","v":35.341666666666661},{"$f":"MAX(O22:O33)","v":48.5}]
[]
[null,null,null,null,null,null,null,null,null,{"$f":"+A6","v":2021},"mg/Nm3","Monthly 1/2 hourly mean","Monthly 1/2 hourly maximum","Monthly daily mean","Monthly daily maximum"]
[null,null,null,null,null,null,null,null,null,"A3","Jan"]
[null,null,null,null,null,null,null,null,null,null,"Feb"]
[null,null,null,null,null,null,null,null,null,null,"Mar"]
[null,null,null,null,null,null,null,null,null,null,"Apr"]
[null,null,null,null,null,null,null,null,null,null,"May"]
[null,null,null,null,null,null,null,null,null,null,"Jun"]
[null,null,null,null,null,null,null,null,null,null,"Jul"]
[null,null,null,null,null,null,null,null,null,null,"Aug"]
[null,null,null,null,null,null,null,null,null,null,"Sep"]
[null,null,null,null,null,null,null,null,null,null,"Oct"]
[null,null,null,null,null,null,null,null,null,null,"Nov"]
["Comments :",null,null,null,null,null,null,null,null,null,"Dec"]
[null,null,null,null,null,null,null,null,null,null,"Annual",{"$f":"AVERAGE(L37:L48)","v":{"$error":"#DIV/0!"}},{"$f":"MAX(M37:M48)","v":0},{"$f":"AVERAGE(N37:N48)","v":{"$error":"#DIV/0!"}},{"$f":"MAX(O37:O48)","v":0}]
[]
[null,null,null,null,null,null,null,null,null,{"$f":"+A6","v":2021},"mg/Nm3","Monthly 1/2 hourly mean","Monthly 1/2 hourly maximum","Monthly daily mean","Monthly daily maximum"]
[null,null,null,null,null,null,null,null,null,"A4","Jan"]
[null,null,null,null,null,null,null,null,null,null,"Feb"]
[null,null,null,null,null,null,null,null,null,null,"Mar"]
[null,null,null,null,null,null,null,null,null,null,"Apr"]
[null,null,null,null,null,null,null,null,null,null,"May"]
[null,null,null,null,null,null,null,null,null,null,"Jun"]
[null,null,null,null,null,null,null,null,null,null,"Jul"]
[null,null,null,null,null,null,null,null,null,null,"Aug"]
[null,null,null,null,null,null,null,null,null,null,"Sep"]
[null,null,null,null,null,null,null,null,null,null,"Oct"]
[null,null,null,null,null,null,null,null,null,null,"Nov"]
[null,null,null,null,null,null,null,null,null,null,"Dec"]
[null,null,null,null,null,null,null,null,null,null,"Annual",{"$f":"AVERAGE(L52:L63)","v":{"$error":"#DIV/0!"}},{"$f":"MAX(M52:M63)","v":0},{"$f":"AVERAGE(N52:N63)","v":{"$error":"#DIV/0!"}},{"$f":"MAX(O52:O63)","v":0}]
[]
[null,null,null,null,null,null,null,null,null,{"$f":"+A6","v":2021},"mg/Nm3","Monthly 1/2 hourly mean","Monthly 1/2 hourly maximum","Monthly daily mean","Monthly daily maximum"]
[null,null,null,null,null,null,null,null,null,"A5","Jan"]
[null,null,null,null,null,null,null,null,null,null,"Feb"]
[null,null,null,null,null,null,null,null,null,null,"Mar"]
[null,null,null,null,null,null,null,null,null,null,"Apr"]
[null,null,null,null,null,null,null,null,null,null,"May"]
[null,null,null,null,null,null,null,null,null,null,"Jun"]
[null,null,null,null,null,null,null,null,null,null,"Jul"]
[null,null,null,null,null,null,null,null,null,null,"Aug"]
[null,null,null,null,null,null,null,null,null,null,"Sep"]
[null,null,null,null,null,null,null,null,null,null,"Oct"]
[null,null,null,null,null,null,null,null,null,null,"Nov"]
[null,null,null,null,null,null,null,null,null,null,"Dec"]
[null,null,null,null,null,null,null,null,null,null,"Annual",{"$f":"AVERAGE(L67:L78)","v":{"$error":"#DIV/0!"}},{"$f":"MAX(M67:M78)","v":0},{"$f":"AVERAGE(N67:N78)","v":{"$error":"#DIV/0!"}},{"$f":"MAX(O67:O78)","v":0}]

{"sheet":"NOx","index":16,"n_rows":79,"n_cols":17,"rows_kept":79,"cut":false,"hidden":false,"merged":[[3,16,7,18],[9,16,11,18],[12,16,15,18],[66,9,78,9],[4,1,4,3],[4,4,4,6],[4,9,4,14],[6,9,18,9],[21,9,33,9],[36,9,48,9],[47,0,47,6],[48,0,51,6],[51,9,63,9]]}
[{"$f":"+'Cover Page'!$B$29","v":"Annual Performance Report 2021"},null,null,null,{"$f":"+'Cover Page'!$B$33","v":"Staffordshire Energy Recovery Facility"}]
[]
["Monitoring of Oxides of Nitrogen emissions",null,null,"Whole Installation",null,null,"See  Notes in Cell Q3",null,null,{"$f":"+A3","v":"Monitoring of Oxides of Nitrogen emissions"},null,null,null,"Per Combustion Line",null,null,"Notes:"]
[null,null,null,null,null,null,null,null,null,null,null,null,null,null,null,null,"User to add logic to complete Whole installation, Table A5:G18. From the data in Per Combustion Line, Table J6:O79, subject to No. of lines installed"]
["mg/Nm3","1/2 Hourly Reference Periods",null,null,"Daily Reference Periods"]
[{"$f":"+'Cover Page'!C39","v":2021},"1/2 hourly NOx ELV","Monthly 1/2 hourly mean","Highest 1/2 hourly maximum","Daily NOx ELV","Monthly daily mean","Highest daily maximum",null,null,{"$f":"+A6","v":2021},"mg/Nm3","Monthly 1/2 hourly mean","Monthly 1/2 hourly maximum","Monthly daily mean","Monthly daily maximum"]
["Jan",400,{"$f":"AVERAGE(L7,L22)","v":143.39999999999998},{"$f":"AVERAGE(M7,M22)","v":289.8},200,{"$f":"AVERAGE(N7,N22)","v":143.30000000000001},{"$f":"AVERAGE(O7,O22)","v":159.80000000000001},null,null,"A1","Jan",134.6,283.8,134.5,145.4]
["Feb",400,{"$f":"AVERAGE(L8,L23)","v":152.94999999999999},{"$f":"AVERAGE(M8,M23)","v":268.3},200,{"$f":"AVERAGE(N8,N23)","v":153.25},{"$f":"AVERAGE(O8,O23)","v":175.39999999999998},null,null,null,"Feb",146.69999999999999,275.8,147.30000000000001,172.7]
["Mar",400,{"$f":"AVERAGE(L9,L24)","v":157.30000000000001},260.75,200,157.05000000000001,166.7,null,null,null,"Mar",150.9,251.3,150.80000000000001,159.6,null,"Whole Installation table A5:G18:"]
["Apr",400,155.5,200.5,200,155.19999999999999,164.05,null,null,null,"Apr",153,190.2,152.80000000000001,163.5,null,"Mean: for 1/2 hourly and daily periods calculate mean of values across all operational combustion lines for the month"]
["May",400,154.25,293.3,200,154.19999999999999,164.05,null,null,null,"May",147.1,310,147.1,156.1]
["Jun",400,153.5,302.29999999999995,200,153.5,164.05,null,null,null,"Jun",145,321.39999999999998,145.1,158.4]
["Jul",400,152.44999999999999,202.1,200,152.44999999999999,161.5,null,null,null,"Jul",146.4,207,146.30000000000001,156.5,null,"Maximum: for 1/2 hourly and daily periods use the highest value across all operational combustion lines for the month"]
["Aug",400,154.05000000000001,296.7,200,154,166.2,null,null,null,"Aug",150.4,304,150.30000000000001,163.5]
["Sep",400,154.89999999999998,308.5,200,154.89999999999998,163.69999999999999,null,null,null,"Sep",148.1,310.10000000000002,148.1,156.4]
["Oct",400,155.4,{"$f":"AVERAGE(M16,M31)","v":294},200,155.4,{"$f":"AVERAGE(O16,O31)","v":165.35},null,null,null,"Oct",147.30000000000001,311.60000000000002,147.30000000000001,160.19999999999999]
["Nov",400,{"$f":"AVERAGE(L17,L32)","v":156.35},267.95000000000005,200,156.30000000000001,170.5,null,null,null,"Nov",151.19999999999999,293.10000000000002,151.1,171.6]
["Dec",400,159.5,303.10000000000002,200,{"$f":"AVERAGE(N18,N33)","v":159.19999999999999},189.3,null,null,null,"Dec",155.69999999999999,287.2,155.4,197.7]
[null,null,null,null,null,null,null,null,null,null,"Annual",{"$f":"AVERAGE(L7:L18)","v":148.03333333333333},{"$f":"MAX(M7:M18)","v":321.39999999999998},{"$f":"AVERAGE(N7:N18)","v":148.00833333333333},{"$f":"MAX(O7:O18)","v":197.7}]
[]
[null,null,null,null,null,null,null,null,null,{"$f":"+A6","v":2021},"mg/Nm3","Monthly 1/2 hourly mean","Monthly 1/2 hourly maximum","Monthly daily mean","Monthly daily maximum"]
[null,null,null,null,null,null,null,null,null,"A2","Jan",152.19999999999999,295.8,152.1,174.2]
[null,null,null,null,null,null,null,null,null,null,"Feb",159.19999999999999,260.8,159.19999999999999,178.1]
[null,null,null,null,null,null,null,null,null,null,"Mar",163.69999999999999,270.2,163.30000000000001,173.8]
[null,null,null,null,null,null,null,null,null,null,"Apr",158,210.8,157.6,164.6]
[null,null,null,null,null,null,null,null,null,null,"May",161.4,276.60000000000002,161.30000000000001,172]
[null,null,null,null,null,null,null,null,null,null,"Jun",162,283.2,161.9,169.7]
[null,null,null,null,null,null,null,null,null,null,"Jul",158.5,197.2,158.6,166.5]
[null,null,null,null,null,null,null,null,null,null,"Aug",157.69999999999999,289.39999999999998,157.69999999999999,168.9]
[null,null,null,null,null,null,null,null,null,null,"Sep",161.69999999999999,306.89999999999998,161.69999999999999,171]
[null,null,null,null,null,null,null,null,null,null,"Oct",163.5,276.39999999999998,163.5,170.5]
[null,null,null,null,null,null,null,null,null,null,"Nov",161.5,242.8,161.5,169.4]
[null,null,null,null,null,null,null,null,null,null,"Dec",163.30000000000001,319,163,180.9]
[null,null,null,null,null,null,null,null,null,null,"Annual",{"$f":"AVERAGE(L22:L33)","v":160.22499999999999},{"$f":"MAX(M22:M33)","v":319},{"$f":"AVERAGE(N22:N33)","v":160.11666666666667},{"$f":"MAX(O22:O33)","v":180.9}]
[]
[null,null,null,null,null,null,null,null,null,{"$f":"+A6","v":2021},"mg/Nm3","Monthly 1/2 hourly mean","Monthly 1/2 hourly maximum","Monthly daily mean","Monthly daily maximum"]
[null,null,null,null,null,null,null,null,null,"A3","Jan"]
[null,null,null,null,null,null,null,null,null,null,"Feb"]
[null,null,null,null,null,null,null,null,null,null,"Mar"]
[null,null,null,null,null,null,null,null,null,null,"Apr"]
[null,null,null,null,null,null,null,null,null,null,"May"]
[null,null,null,null,null,null,null,null,null,null,"Jun"]
[null,null,null,null,null,null,null,null,null,null,"Jul"]
[null,null,null,null,null,null,null,null,null,null,"Aug"]
[null,null,null,null,null,null,null,null,null,null,"Sep"]
[null,null,null,null,null,null,null,null,null,null,"Oct"]
[null,null,null,null,null,null,null,null,null,null,"Nov"]
["Comments :",null,null,null,null,null,null,null,null,null,"Dec"]
[null,null,null,null,null,null,null,null,null,null,"Annual",{"$f":"AVERAGE(L37:L48)","v":{"$error":"#DIV/0!"}},{"$f":"MAX(M37:M48)","v":0},{"$f":"AVERAGE(N37:N48)","v":{"$error":"#DIV/0!"}},{"$f":"MAX(O37:O48)","v":0}]
[]
[null,null,null,null,null,null,null,null,null,{"$f":"+A6","v":2021},"mg/Nm3","Monthly 1/2 hourly mean","Monthly 1/2 hourly maximum","Monthly daily mean","Monthly daily maximum"]
[null,null,null,null,null,null,null,null,null,"A4","Jan"]
[null,null,null,null,null,null,null,null,null,null,"Feb"]
[null,null,null,null,null,null,null,null,null,null,"Mar"]
[null,null,null,null,null,null,null,null,null,null,"Apr"]
[null,null,null,null,null,null,null,null,null,null,"May"]
[null,null,null,null,null,null,null,null,null,null,"Jun"]
[null,null,null,null,null,null,null,null,null,null,"Jul"]
[null,null,null,null,null,null,null,null,null,null,"Aug"]
[null,null,null,null,null,null,null,null,null,null,"Sep"]
[null,null,null,null,null,null,null,null,null,null,"Oct"]
[null,null,null,null,null,null,null,null,null,null,"Nov"]
[null,null,null,null,null,null,null,null,null,null,"Dec"]
[null,null,null,null,null,null,null,null,null,null,"Annual",{"$f":"AVERAGE(L52:L63)","v":{"$error":"#DIV/0!"}},{"$f":"MAX(M52:M63)","v":0},{"$f":"AVERAGE(N52:N63)","v":{"$error":"#DIV/0!"}},{"$f":"MAX(O52:O63)","v":0}]
[]
[null,null,null,null,null,null,null,null,null,{"$f":"+A6","v":2021},"mg/Nm3","Monthly 1/2 hourly mean","Monthly 1/2 hourly maximum","Monthly daily mean","Monthly daily maximum"]
[null,null,null,null,null,null,null,null,null,"A5","Jan"]
[null,null,null,null,null,null,null,null,null,null,"Feb"]
[null,null,null,null,null,null,null,null,null,null,"Mar"]
[null,null,null,null,null,null,null,null,null,null,"Apr"]
[null,null,null,null,null,null,null,null,null,null,"May"]
[null,null,null,null,null,null,null,null,null,null,"Jun"]
[null,null,null,null,null,null,null,null,null,null,"Jul"]
[null,null,null,null,null,null,null,null,null,null,"Aug"]
[null,null,null,null,null,null,null,null,null,null,"Sep"]
[null,null,null,null,null,null,null,null,null,null,"Oct"]
[null,null,null,null,null,null,null,null,null,null,"Nov"]
[null,null,null,null,null,null,null,null,null,null,"Dec"]
[null,null,null,null,null,null,null,null,null,null,"Annual",{"$f":"AVERAGE(L67:L78)","v":{"$error":"#DIV/0!"}},{"$f":"MAX(M67:M78)","v":0},{"$f":"AVERAGE(N67:N78)","v":{"$error":"#DIV/0!"}},{"$f":"MAX(O67:O78)","v":0}]

{"sheet":"TOC","index":17,"n_rows":79,"n_cols":17,"rows_kept":79,"cut":false,"hidden":false,"merged":[[3,16,7,18],[9,16,11,18],[12,16,15,18],[66,9,78,9],[4,1,4,3],[4,4,4,6],[4,9,4,14],[6,9,18,9],[21,9,33,9],[36,9,48,9],[47,0,47,6],[48,0,51,6],[51,9,63,9]]}
[{"$f":"+'Cover Page'!$B$29","v":"Annual Performance Report 2021"},null,null,null,{"$f":"+'Cover Page'!$B$33","v":"Staffordshire Energy Recovery Facility"}]
[]
["Monitoring of Total organic carbon emissions",null,null,"Whole Installation",null,null,"See  Notes in Cell Q3",null,null,{"$f":"+A3","v":"Monitoring of Total organic carbon emissions"},null,null,null,"Per Combustion Line",null,null,"Notes:"]
[null,null,null,null,null,null,null,null,null,null,null,null,null,null,null,null,"User to add logic to complete Whole installation, Table A5:G18. From the data in Per Combustion Line, Table J6:O79, subject to No. of lines installed"]
["mg/Nm3","1/2 Hourly Reference Periods",null,null,"Daily Reference Periods"]
[{"$f":"+'Cover Page'!C39","v":2021},"1/2 hourly TOC ELV","Monthly 1/2 hourly mean","Highest 1/2 hourly maximum","Daily TOC ELV","Monthly daily mean","Highest daily maximum",null,null,{"$f":"+A6","v":2021},"mg/Nm3","Monthly 1/2 hourly mean","Monthly 1/2 hourly maximum","Monthly daily mean","Monthly daily maximum"]
["Jan",20,{"$f":"AVERAGE(L7,L22)","v":0.05},{"$f":"MAX(M7,M22)","v":6.3},10,{"$f":"AVERAGE(N7,N22)","v":0},{"$f":"MAX(O7,O22)","v":0.2},null,null,"A1","Jan",0.1,6.1,0,0.2]
["Feb",20,{"$f":"AVERAGE(L8,L23)","v":0},{"$f":"MAX(M8,M23)","v":1.8},10,{"$f":"AVERAGE(N8,N23)","v":0},{"$f":"MAX(O8,O23)","v":0.2},null,null,null,"Feb",0,1.8,0,0.2]
["Mar",20,0,3.6,10,0,0.3,null,null,null,"Mar",0,3,0,0.2,null,"Whole Installation table A5:G18:"]
["Apr",20,0.15000000000000002,10.3,10,0.05,1.4,null,null,null,"Apr",0.1,4.4000000000000004,0,0.3,null,"Mean: for 1/2 hourly and daily periods calculate mean of values across all operational combustion lines for the month"]
["May",20,0.05,1.7,10,0.05,0.4,null,null,null,"May",0.1,1.1000000000000001,0.1,0.4]
["Jun",20,0.05,11.6,10,0.05,0.8,null,null,null,"Jun",0.1,10.6,0.1,0.6]
["Jul",20,0.1,7.2,10,0.05,0.6,null,null,null,"Jul",0.1,7.2,0.1,0.4,null,"Maximum: for 1/2 hourly and daily periods use the highest value across all operational combustion lines for the month"]
["Aug",20,0.05,7.2,10,0.05,0.4,null,null,null,"Aug",0.1,7.2,0.1,0.4]
["Sep",20,0.05,5.3,10,0.05,0.5,null,null,null,"Sep",0.1,2.5,0.1,0.5]
["Oct",20,0.05,6.8,10,0.05,0.3,null,null,null,"Oct",0.1,6.8,0.1,0.3]
["Nov",20,0.05,15.5,10,0.05,{"$f":"MAX(O17,O32)","v":0.4},null,null,null,"Nov",0.1,15.5,0.1,0.4]
["Dec",20,0.05,4,10,0.05,0.4,null,null,null,"Dec",0.1,2,0.1,0.4]
[null,null,null,null,null,null,null,null,null,null,"Annual",{"$f":"AVERAGE(L7:L18)","v":8.3333333333333329E-2},{"$f":"MAX(M7:M18)","v":15.5},{"$f":"AVERAGE(N7:N18)","v":6.6666666666666666E-2},{"$f":"MAX(O7:O18)","v":0.6}]
[]
[null,null,null,null,null,null,null,null,null,{"$f":"+A6","v":2021},"mg/Nm3","Monthly 1/2 hourly mean","Monthly 1/2 hourly maximum","Monthly daily mean","Monthly daily maximum"]
[null,null,null,null,null,null,null,null,null,"A2","Jan",0,6.3,0,0.2]
[null,null,null,null,null,null,null,null,null,null,"Feb",0,1.4,0,0.2]
[null,null,null,null,null,null,null,null,null,null,"Mar",0,3.6,0,0.3]
[null,null,null,null,null,null,null,null,null,null,"Apr",0.2,10.3,0.1,1.4]
[null,null,null,null,null,null,null,null,null,null,"May",0,1.7,0,0.1]
[null,null,null,null,null,null,null,null,null,null,"Jun",0,11.6,0,0.8]
[null,null,null,null,null,null,null,null,null,null,"Jul",0.1,5.9,0,0.6]
[null,null,null,null,null,null,null,null,null,null,"Aug",0,7.1,0,0.2]
[null,null,null,null,null,null,null,null,null,null,"Sep",0,5.3,0,0.4]
[null,null,null,null,null,null,null,null,null,null,"Oct",0,3.2,0,0.1]
[null,null,null,null,null,null,null,null,null,null,"Nov",0,6.7,0,0.2]
[null,null,null,null,null,null,null,null,null,null,"Dec",0,4,0,0.2]
[null,null,null,null,null,null,null,null,null,null,"Annual",{"$f":"AVERAGE(L22:L33)","v":2.5000000000000005E-2},{"$f":"MAX(M22:M33)","v":11.6},{"$f":"AVERAGE(N22:N33)","v":8.3333333333333332E-3},{"$f":"MAX(O22:O33)","v":1.4}]
[]
[null,null,null,null,null,null,null,null,null,{"$f":"+A6","v":2021},"mg/Nm3","Monthly 1/2 hourly mean","Monthly 1/2 hourly maximum","Monthly daily mean","Monthly daily maximum"]
[null,null,null,null,null,null,null,null,null,"A3","Jan"]
[null,null,null,null,null,null,null,null,null,null,"Feb"]
[null,null,null,null,null,null,null,null,null,null,"Mar"]
[null,null,null,null,null,null,null,null,null,null,"Apr"]
[null,null,null,null,null,null,null,null,null,null,"May"]
[null,null,null,null,null,null,null,null,null,null,"Jun"]
[null,null,null,null,null,null,null,null,null,null,"Jul"]
[null,null,null,null,null,null,null,null,null,null,"Aug"]
[null,null,null,null,null,null,null,null,null,null,"Sep"]
[null,null,null,null,null,null,null,null,null,null,"Oct"]
[null,null,null,null,null,null,null,null,null,null,"Nov"]
["Comments :",null,null,null,null,null,null,null,null,null,"Dec"]
[null,null,null,null,null,null,null,null,null,null,"Annual",{"$f":"AVERAGE(L37:L48)","v":{"$error":"#DIV/0!"}},{"$f":"MAX(M37:M48)","v":0},{"$f":"AVERAGE(N37:N48)","v":{"$error":"#DIV/0!"}},{"$f":"MAX(O37:O48)","v":0}]
[]
[null,null,null,null,null,null,null,null,null,{"$f":"+A6","v":2021},"mg/Nm3","Monthly 1/2 hourly mean","Monthly 1/2 hourly maximum","Monthly daily mean","Monthly daily maximum"]
[null,null,null,null,null,null,null,null,null,"A4","Jan"]
[null,null,null,null,null,null,null,null,null,null,"Feb"]
[null,null,null,null,null,null,null,null,null,null,"Mar"]
[null,null,null,null,null,null,null,null,null,null,"Apr"]
[null,null,null,null,null,null,null,null,null,null,"May"]
[null,null,null,null,null,null,null,null,null,null,"Jun"]
[null,null,null,null,null,null,null,null,null,null,"Jul"]
[null,null,null,null,null,null,null,null,null,null,"Aug"]
[null,null,null,null,null,null,null,null,null,null,"Sep"]
[null,null,null,null,null,null,null,null,null,null,"Oct"]
[null,null,null,null,null,null,null,null,null,null,"Nov"]
[null,null,null,null,null,null,null,null,null,null,"Dec"]
[null,null,null,null,null,null,null,null,null,null,"Annual",{"$f":"AVERAGE(L52:L63)","v":{"$error":"#DIV/0!"}},{"$f":"MAX(M52:M63)","v":0},{"$f":"AVERAGE(N52:N63)","v":{"$error":"#DIV/0!"}},{"$f":"MAX(O52:O63)","v":0}]
[]
[null,null,null,null,null,null,null,null,null,{"$f":"+A6","v":2021},"mg/Nm3","Monthly 1/2 hourly mean","Monthly 1/2 hourly maximum","Monthly daily mean","Monthly daily maximum"]
[null,null,null,null,null,null,null,null,null,"A5","Jan"]
[null,null,null,null,null,null,null,null,null,null,"Feb"]
[null,null,null,null,null,null,null,null,null,null,"Mar"]
[null,null,null,null,null,null,null,null,null,null,"Apr"]
[null,null,null,null,null,null,null,null,null,null,"May"]
[null,null,null,null,null,null,null,null,null,null,"Jun"]
[null,null,null,null,null,null,null,null,null,null,"Jul"]
[null,null,null,null,null,null,null,null,null,null,"Aug"]
[null,null,null,null,null,null,null,null,null,null,"Sep"]
[null,null,null,null,null,null,null,null,null,null,"Oct"]
[null,null,null,null,null,null,null,null,null,null,"Nov"]
[null,null,null,null,null,null,null,null,null,null,"Dec"]
[null,null,null,null,null,null,null,null,null,null,"Annual",{"$f":"AVERAGE(L67:L78)","v":{"$error":"#DIV/0!"}},{"$f":"MAX(M67:M78)","v":0},{"$f":"AVERAGE(N67:N78)","v":{"$error":"#DIV/0!"}},{"$f":"MAX(O67:O78)","v":0}]

{"sheet":"Particulates","index":18,"n_rows":79,"n_cols":17,"rows_kept":79,"cut":false,"hidden":false,"merged":[[3,16,7,18],[9,16,11,18],[12,16,15,18],[66,9,78,9],[4,1,4,3],[4,4,4,6],[4,9,4,14],[6,9,18,9],[21,9,33,9],[36,9,48,9],[47,0,47,6],[48,0,51,6],[51,9,63,9]]}
[{"$f":"+'Cover Page'!$B$29","v":"Annual Performance Report 2021"},null,null,null,{"$f":"+'Cover Page'!$B$33","v":"Staffordshire Energy Recovery Facility"}]
[]
["Monitoring of Particulate matter emissions",null,null,"Whole Installation",null,null,"See  Notes in Cell Q3",null,null,{"$f":"+A3","v":"Monitoring of Particulate matter emissions"},null,null,null,"Per Combustion Line",null,null,"Notes:"]
[null,null,null,null,null,null,null,null,null,null,null,null,null,null,null,null,"User to add logic to complete Whole installation, Table A5:G18. From the data in Per Combustion Line, Table J6:O79, subject to No. of lines installed"]
["mg/Nm3","1/2 Hourly Reference Periods",null,null,"Daily Reference Periods"]
[{"$f":"+'Cover Page'!C39","v":2021},"1/2 hourly PM ELV","Monthly 1/2 hourly mean","Highest 1/2 hourly maximum","Daily PM ELV","Monthly daily mean","Highest daily maximum",null,null,{"$f":"+A6","v":2021},"mg/Nm3","Monthly 1/2 hourly mean","Monthly 1/2 hourly maximum","Monthly daily mean","Monthly daily maximum"]
["Jan",30,{"$f":"AVERAGE(L7,L22)","v":0.3},{"$f":"MAX(M7,M22)","v":0.4},10,{"$f":"AVERAGE(N7,N22)","v":0.25},{"$f":"MAX(O7,O22)","v":0.3},null,null,"A1","Jan",0.3,0.4,0.2,0.3]
["Feb",30,{"$f":"AVERAGE(L8,L23)","v":0.3},{"$f":"MAX(M8,M23)","v":0.5},10,{"$f":"AVERAGE(N8,N23)","v":0.25},{"$f":"MAX(O8,O23)","v":0.3},null,null,null,"Feb",0.3,0.5,0.3,0.3]
["Mar",30,0.3,1.7,10,0.25,0.4,null,null,null,"Mar",0.3,1.1000000000000001,0.3,0.4,null,"Whole Installation table A5:G18:"]
["Apr",30,0.3,0.5,10,0.2,0.3,null,null,null,"Apr",0.3,0.5,0.2,0.3,null,"Mean: for 1/2 hourly and daily periods calculate mean of values across all operational combustion lines for the month"]
["May",30,0.3,{"$f":"MAX(M11,M26)","v":0.6},10,0.25,0.3,null,null,null,"May",0.3,0.6,0.3,0.3]
["Jun",30,0.3,0.4,10,0.25,0.3,null,null,null,"Jun",0.3,0.4,0.3,0.3]
["Jul",30,0.3,0.4,10,0.2,0.3,null,null,null,"Jul",0.3,0.4,0.2,0.3,null,"Maximum: for 1/2 hourly and daily periods use the highest value across all operational combustion lines for the month"]
["Aug",30,0.3,0.4,10,0.2,0.3,null,null,null,"Aug",0.3,0.4,0.2,0.3]
["Sep",30,0.35,1.1000000000000001,10,0.25,0.6,null,null,null,"Sep",0.4,1.1000000000000001,0.3,0.6]
["Oct",30,0.5,4.4000000000000004,10,0.44999999999999996,2.5,null,null,null,"Oct",0.7,4.4000000000000004,0.7,2.5]
["Nov",30,0.35,0.9,10,0.30000000000000004,0.6,null,null,null,"Nov",0.4,0.9,0.4,0.6]
["Dec",30,0.35,0.9,10,0.25,0.5,null,null,null,"Dec",0.4,0.9,0.3,0.5]
[null,null,null,null,null,null,null,null,null,null,"Annual",{"$f":"AVERAGE(L7:L18)","v":0.35833333333333334},{"$f":"MAX(M7:M18)","v":4.4000000000000004},{"$f":"AVERAGE(N7:N18)","v":0.30833333333333329},{"$f":"MAX(O7:O18)","v":2.5}]
[]
[null,null,null,null,null,null,null,null,null,{"$f":"+A6","v":2021},"mg/Nm3","Monthly 1/2 hourly mean","Monthly 1/2 hourly maximum","Monthly daily mean","Monthly daily maximum"]
[null,null,null,null,null,null,null,null,null,"A2","Jan",0.3,0.4,0.3,0.3]
[null,null,null,null,null,null,null,null,null,null,"Feb",0.3,0.5,0.2,0.3]
[null,null,null,null,null,null,null,null,null,null,"Mar",0.3,1.7,0.2,0.3]
[null,null,null,null,null,null,null,null,null,null,"Apr",0.3,0.4,0.2,0.3]
[null,null,null,null,null,null,null,null,null,null,"May",0.3,0.4,0.2,0.3]
[null,null,null,null,null,null,null,null,null,null,"Jun",0.3,0.3,0.2,0.3]
[null,null,null,null,null,null,null,null,null,null,"Jul",0.3,0.4,0.2,0.3]
[null,null,null,null,null,null,null,null,null,null,"Aug",0.3,0.3,0.2,0.3]
[null,null,null,null,null,null,null,null,null,null,"Sep",0.3,0.3,0.2,0.3]
[null,null,null,null,null,null,null,null,null,null,"Oct",0.3,0.4,0.2,0.3]
[null,null,null,null,null,null,null,null,null,null,"Nov",0.3,0.4,0.2,0.3]
[null,null,null,null,null,null,null,null,null,null,"Dec",0.3,0.4,0.2,0.3]
[null,null,null,null,null,null,null,null,null,null,"Annual",{"$f":"AVERAGE(L22:L33)","v":0.29999999999999993},{"$f":"MAX(M22:M33)","v":1.7},{"$f":"AVERAGE(N22:N33)","v":0.20833333333333334},{"$f":"MAX(O22:O33)","v":0.3}]
[]
[null,null,null,null,null,null,null,null,null,{"$f":"+A6","v":2021},"mg/Nm3","Monthly 1/2 hourly mean","Monthly 1/2 hourly maximum","Monthly daily mean","Monthly daily maximum"]
[null,null,null,null,null,null,null,null,null,"A3","Jan"]
[null,null,null,null,null,null,null,null,null,null,"Feb"]
[null,null,null,null,null,null,null,null,null,null,"Mar"]
[null,null,null,null,null,null,null,null,null,null,"Apr"]
[null,null,null,null,null,null,null,null,null,null,"May"]
[null,null,null,null,null,null,null,null,null,null,"Jun"]
[null,null,null,null,null,null,null,null,null,null,"Jul"]
[null,null,null,null,null,null,null,null,null,null,"Aug"]
[null,null,null,null,null,null,null,null,null,null,"Sep"]
[null,null,null,null,null,null,null,null,null,null,"Oct"]
[null,null,null,null,null,null,null,null,null,null,"Nov"]
["Comments :",null,null,null,null,null,null,null,null,null,"Dec"]
[null,null,null,null,null,null,null,null,null,null,"Annual",{"$f":"AVERAGE(L37:L48)","v":{"$error":"#DIV/0!"}},{"$f":"MAX(M37:M48)","v":0},{"$f":"AVERAGE(N37:N48)","v":{"$error":"#DIV/0!"}},{"$f":"MAX(O37:O48)","v":0}]
[]
[null,null,null,null,null,null,null,null,null,{"$f":"+A6","v":2021},"mg/Nm3","Monthly 1/2 hourly mean","Monthly 1/2 hourly maximum","Monthly daily mean","Monthly daily maximum"]
[null,null,null,null,null,null,null,null,null,"A4","Jan"]
[null,null,null,null,null,null,null,null,null,null,"Feb"]
[null,null,null,null,null,null,null,null,null,null,"Mar"]
[null,null,null,null,null,null,null,null,null,null,"Apr"]
[null,null,null,null,null,null,null,null,null,null,"May"]
[null,null,null,null,null,null,null,null,null,null,"Jun"]
[null,null,null,null,null,null,null,null,null,null,"Jul"]
[null,null,null,null,null,null,null,null,null,null,"Aug"]
[null,null,null,null,null,null,null,null,null,null,"Sep"]
[null,null,null,null,null,null,null,null,null,null,"Oct"]
[null,null,null,null,null,null,null,null,null,null,"Nov"]
[null,null,null,null,null,null,null,null,null,null,"Dec"]
[null,null,null,null,null,null,null,null,null,null,"Annual",{"$f":"AVERAGE(L52:L63)","v":{"$error":"#DIV/0!"}},{"$f":"MAX(M52:M63)","v":0},{"$f":"AVERAGE(N52:N63)","v":{"$error":"#DIV/0!"}},{"$f":"MAX(O52:O63)","v":0}]
[]
[null,null,null,null,null,null,null,null,null,{"$f":"+A6","v":2021},"mg/Nm3","Monthly 1/2 hourly mean","Monthly 1/2 hourly maximum","Monthly daily mean","Monthly daily maximum"]
[null,null,null,null,null,null,null,null,null,"A5","Jan"]
[null,null,null,null,null,null,null,null,null,null,"Feb"]
[null,null,null,null,null,null,null,null,null,null,"Mar"]
[null,null,null,null,null,null,null,null,null,null,"Apr"]
[null,null,null,null,null,null,null,null,null,null,"May"]
[null,null,null,null,null,null,null,null,null,null,"Jun"]
[null,null,null,null,null,null,null,null,null,null,"Jul"]
[null,null,null,null,null,null,null,null,null,null,"Aug"]
[null,null,null,null,null,null,null,null,null,null,"Sep"]
[null,null,null,null,null,null,null,null,null,null,"Oct"]
[null,null,null,null,null,null,null,null,null,null,"Nov"]
[null,null,null,null,null,null,null,null,null,null,"Dec"]
[null,null,null,null,null,null,null,null,null,null,"Annual",{"$f":"AVERAGE(L67:L78)","v":{"$error":"#DIV/0!"}},{"$f":"MAX(M67:M78)","v":0},{"$f":"AVERAGE(N67:N78)","v":{"$error":"#DIV/0!"}},{"$f":"MAX(O67:O78)","v":0}]

{"sheet":"CO 95% 10 min","index":19,"n_rows":79,"n_cols":19,"rows_kept":79,"cut":false,"hidden":false,"merged":[[3,18,7,20],[9,18,11,20],[12,18,15,20],[66,10,78,10],[4,1,4,4],[4,5,4,7],[4,10,4,16],[6,10,18,10],[21,10,33,10],[36,10,48,10],[47,0,47,7],[48,0,51,7],[51,10,63,10]]}
[{"$f":"+'Cover Page'!$B$29","v":"Annual Performance Report 2021"},null,null,null,{"$f":"+'Cover Page'!$B$33","v":"Staffordshire Energy Recovery Facility"}]
[]
["Monitoring of Carbon Monoxide (10-minute avg)",null,null,null,"Whole Installation",null,null,"See  Notes in Cell S3",null,{"$f":"+A3","v":"Monitoring of Carbon Monoxide (10-minute avg)"},null,null,null,null,"Per Combustion Line",null,"Notes:",null,"Notes:"]
[null,null,null,null,null,null,null,null,null,null,null,null,null,null,null,null,null,null,"User to add logic to complete Whole installation, Table A5:H18. From the data in Per Combustion Line, Table K6:Q79, subject to No. of lines installed"]
["mg/Nm3","10-minute Reference Periods",null,null,null,"Daily Reference Periods"]
[{"$f":"+'Cover Page'!C39","v":2021},"95%ile 10-min avg CO ELV","95%ile 10-min avg maximum","Monthly CO 10-min avg mean","10-min avg maximum","Daily CO ELV","Monthly daily mean","Highest daily maximum",null,null,{"$f":"+A6","v":2021},"mg/Nm3","95%ile 10-min avg maximum","Monthly CO 10-min avg mean","10-min avg maximum","Monthly daily mean","Monthly daily maximum"]
["Jan",150,{"$f":"MAX(M7,M22)","v":10.1},{"$f":"AVERAGE(N7,N22)","v":3.6999999999999997},{"$f":"MAX(O7,O22)","v":513.79999999999995},50,{"$f":"AVERAGE(P7,P22)","v":3.55},{"$f":"MAX(Q7,Q22)","v":7.4},null,null,"A1","Jan",10.1,4.0999999999999996,121.4,3.9,4.8]
["Feb",{"$f":"+B7","v":150},{"$f":"MAX(M8,M23)","v":11.4},{"$f":"AVERAGE(N8,N23)","v":3.8},{"$f":"MAX(O8,O23)","v":202.9},{"$f":"+F7","v":50},{"$f":"AVERAGE(P8,P23)","v":3.75},{"$f":"MAX(Q8,Q23)","v":6.8},null,null,null,"Feb",11.4,4.3,106.9,4.2,6.8]
["Mar",{"$f":"+B8","v":150},8,3.45,321.10000000000002,{"$f":"+F8","v":50},3.3499999999999996,5.7,null,null,null,"Mar",6.2,4,276.60000000000002,3.9,5.7,null,"Whole Installation table A5:H18:"]
["Apr",150,12.1,3.2,229,50,3.1,6.5,null,null,null,"Apr",10.4,3.3,50.5,3.2,4.3,null,"Mean: for 10-min and daily periods use average of all operational combustion lines."]
["May",150,6.4,2.75,354.3,50,2.75,5.0999999999999996,null,null,null,"May",6,3.3,354.3,3.3,5.0999999999999996]
["Jun",150,8.9,{"$f":"AVERAGE(N12,N27)","v":2.95},459.8,50,2.9,8.3000000000000007,null,null,null,"Jun",7.1,3.1,211.6,3,5.3]
["Jul",150,10.5,3,423.4,50,2.85,5.4,null,null,null,"Jul",10.5,3.4,357.7,3.2,5.0999999999999996,null,"Maximum: for 10-min and daily periods use the highest of all operational combustion lines in any month."]
["Aug",150,22.9,3.05,441.1,50,2.95,9.8000000000000007,null,null,null,"Aug",4.5999999999999996,3.1,260.39999999999998,3,5.2]
["Sep",150,17.399999999999999,3.05,382,50,3,8.6,null,null,null,"Sep",10.3,3.2,224.8,3.2,4.9000000000000004]
["Oct",150,9.8000000000000007,3.3,320.60000000000002,50,3.2,6.7,null,null,null,"Oct",6.8,3.8,288.60000000000002,3.7,5.7]
["Nov",150,10.199999999999999,3.45,455.2,50,3.4,5.8,null,null,null,"Nov",9.3000000000000007,3.9,188.4,3.9,5.0999999999999996]
["Dec",150,10.4,{"$f":"AVERAGE(N18,N33)","v":3.45},574.9,50,3.45,7.3,null,null,null,"Dec",10.4,3.9,424.2,3.9,6.6]
[null,null,null,null,null,null,null,null,null,null,null,"Annual",{"$f":"AVERAGE(M7:M18)","v":8.5916666666666668},{"$f":"AVERAGE(N7:N18)","v":3.6166666666666667},{"$f":"MAX(O7:O18)","v":424.2},{"$f":"AVERAGE(P7:P18)","v":3.5333333333333332},{"$f":"MAX(Q7:Q18)","v":6.8}]
[]
[null,null,null,null,null,null,null,null,null,null,{"$f":"+A6","v":2021},"mg/Nm3","95%ile 10-min avg maximum","Monthly CO 10-min avg mean","10-min avg maximum","Monthly daily mean","Monthly daily maximum"]
[null,null,null,null,null,null,null,null,null,null,"A2","Jan",6.7,3.3,513.79999999999995,3.2,7.4]
[null,null,null,null,null,null,null,null,null,null,null,"Feb",7,3.3,202.9,3.3,4.5]
[null,null,null,null,null,null,null,null,null,null,null,"Mar",8,2.9,321.10000000000002,2.8,5.6]
[null,null,null,null,null,null,null,null,null,null,null,"Apr",12.1,3.1,229,3,6.5]
[null,null,null,null,null,null,null,null,null,null,null,"May",6.4,2.2000000000000002,215.3,2.2000000000000002,4.8]
[null,null,null,null,null,null,null,null,null,null,null,"Jun",8.9,2.8,459.8,2.8,8.3000000000000007]
[null,null,null,null,null,null,null,null,null,null,null,"Jul",8.6,2.6,423.4,2.5,5.4]
[null,null,null,null,null,null,null,null,null,null,null,"Aug",22.9,3,441.1,2.9,9.8000000000000007]
[null,null,null,null,null,null,null,null,null,null,null,"Sep",17.399999999999999,2.9,382,2.8,8.6]
[null,null,null,null,null,null,null,null,null,null,null,"Oct",9.8000000000000007,2.8,320.60000000000002,2.7,6.7]
[null,null,null,null,null,null,null,null,null,null,null,"Nov",10.199999999999999,3,455.2,2.9,5.8]
[null,null,null,null,null,null,null,null,null,null,null,"Dec",7,3,574.9,3,7.3]
[null,null,null,null,null,null,null,null,null,null,null,"Annual",{"$f":"AVERAGE(M22:M33)","v":10.416666666666666},{"$f":"AVERAGE(N22:N33)","v":2.9083333333333337},{"$f":"MAX(O22:O33)","v":574.9},{"$f":"AVERAGE(P22:P33)","v":2.8416666666666663},{"$f":"MAX(Q22:Q33)","v":9.8000000000000007}]
[]
[null,null,null,null,null,null,null,null,null,null,{"$f":"+A6","v":2021},"mg/Nm3","95%ile 10-min avg maximum","Monthly CO 10-min avg mean","10-min avg maximum","Monthly daily mean","Monthly daily maximum"]
[null,null,null,null,null,null,null,null,null,null,"A3","Jan"]
[null,null,null,null,null,null,null,null,null,null,null,"Feb"]
[null,null,null,null,null,null,null,null,null,null,null,"Mar"]
[null,null,null,null,null,null,null,null,null,null,null,"Apr"]
[null,null,null,null,null,null,null,null,null,null,null,"May"]
[null,null,null,null,null,null,null,null,null,null,null,"Jun"]
[null,null,null,null,null,null,null,null,null,null,null,"Jul"]
[null,null,null,null,null,null,null,null,null,null,null,"Aug"]
[null,null,null,null,null,null,null,null,null,null,null,"Sep"]
[null,null,null,null,null,null,null,null,null,null,null,"Oct"]
[null,null,null,null,null,null,null,null,null,null,null,"Nov"]
["Comments :",null,null,null,null,null,null,null,null,null,null,"Dec"]
["Environment Agency explanatory note: The 10-minute average ELV is based on the “95th percentile”. In this case this means that 95% of the 10 minute averages in the relevant 24-hour period (i.e. 137) must be below 150 mg/Nm3, and 5% (i.e. 7) are allowed to be any value above 150 mg/Nm3. Whilst we expect operators to minimise CO emissions at all times, it is perfectly acceptable for the value of the maximum 10-minute average to be above 150 mg/Nm3, provided the 95th percentile ELV has been met for that period. ",null,null,null,null,null,null,null,null,null,null,"Annual",{"$f":"AVERAGE(M37:M48)","v":{"$error":"#DIV/0!"}},null,{"$f":"MAX(O37:O48)","v":0},{"$f":"AVERAGE(P37:P48)","v":{"$error":"#DIV/0!"}},{"$f":"MAX(Q37:Q48)","v":0}]
[]
[null,null,null,null,null,null,null,null,null,null,{"$f":"+A6","v":2021},"mg/Nm3","95%ile 10-min avg maximum","Monthly CO 10-min avg mean","10-min avg maximum","Monthly daily mean","Monthly daily maximum"]
[null,null,null,null,null,null,null,null,null,null,"A4","Jan"]
[null,null,null,null,null,null,null,null,null,null,null,"Feb"]
[null,null,null,null,null,null,null,null,null,null,null,"Mar"]
[null,null,null,null,null,null,null,null,null,null,null,"Apr"]
[null,null,null,null,null,null,null,null,null,null,null,"May"]
[null,null,null,null,null,null,null,null,null,null,null,"Jun"]
[null,null,null,null,null,null,null,null,null,null,null,"Jul"]
[null,null,null,null,null,null,null,null,null,null,null,"Aug"]
[null,null,null,null,null,null,null,null,null,null,null,"Sep"]
[null,null,null,null,null,null,null,null,null,null,null,"Oct"]
[null,null,null,null,null,null,null,null,null,null,null,"Nov"]
[null,null,null,null,null,null,null,null,null,null,null,"Dec"]
[null,null,null,null,null,null,null,null,null,null,null,"Annual",{"$f":"AVERAGE(M52:M63)","v":{"$error":"#DIV/0!"}},null,{"$f":"MAX(O52:O63)","v":0},{"$f":"AVERAGE(P52:P63)","v":{"$error":"#DIV/0!"}},{"$f":"MAX(Q52:Q63)","v":0}]
[]
[null,null,null,null,null,null,null,null,null,null,{"$f":"+A6","v":2021},"mg/Nm3","95%ile 10-min avg maximum","Monthly CO 10-min avg mean","10-min avg maximum","Monthly daily mean","Monthly daily maximum"]
[null,null,null,null,null,null,null,null,null,null,"A5","Jan"]
[null,null,null,null,null,null,null,null,null,null,null,"Feb"]
[null,null,null,null,null,null,null,null,null,null,null,"Mar"]
[null,null,null,null,null,null,null,null,null,null,null,"Apr"]
[null,null,null,null,null,null,null,null,null,null,null,"May"]
[null,null,null,null,null,null,null,null,null,null,null,"Jun"]
[null,null,null,null,null,null,null,null,null,null,null,"Jul"]
[null,null,null,null,null,null,null,null,null,null,null,"Aug"]
[null,null,null,null,null,null,null,null,null,null,null,"Sep"]
[null,null,null,null,null,null,null,null,null,null,null,"Oct"]
[null,null,null,null,null,null,null,null,null,null,null,"Nov"]
[null,null,null,null,null,null,null,null,null,null,null,"Dec"]
[null,null,null,null,null,null,null,null,null,null,null,"Annual",{"$f":"AVERAGE(M67:M78)","v":{"$error":"#DIV/0!"}},null,{"$f":"MAX(O67:O78)","v":0},{"$f":"AVERAGE(P67:P78)","v":{"$error":"#DIV/0!"}},{"$f":"MAX(Q67:Q78)","v":0}]